Workbook

Sheet Start (hidden)
B4: Das Makro ist momentan nicht aktiviert
B5: Bitte Aktivieren Sie das Makro
B6: Ohne Makro funktioniert diese Datei nicht
B8: roland.schnurr@sixsigmablackbelt.de
B10: https://www.sixsigmablackbelt.de

Sheet input
N2: =language!C1 -> process and machine capability | AB2: =IF(calculation!A210=0,language!BJ1,language!BK1) -> The values are calculated
B4: i | C4: xi | E4: i | F4: xi | H4: i | I4: xi | K4: i | L4: xi | N4: =language!D1 -> value could be changed
B5: 1 | C5: 20 | E5: 51 | F5: 18.8 | H5: 101 | I5: 16.9 | K5: 151 | N5: =language!E1 -> value is calculated
B6: 2 | C6: 21 | E6: 52 | F6: 17.1 | H6: 102 | I6: 19.5 | K6: 152
B7: 3 | C7: 21.5 | E7: 53 | F7: 18.6 | H7: 103 | I7: 20.4 | K7: 153 | N7: =language!F1 -> part: | O7: Halter
B8: 4 | C8: 19 | E8: 54 | F8: 18 | H8: 104 | I8: 19.1 | K8: 154 | N8: =language!G1 -> part number: | O8: C2G234824ß
B9: 5 | C9: 19 | E9: 55 | F9: 18.7 | H9: 105 | K9: 155 | N9: =language!H1 -> drawing: | O9: UZT1340124357
B10: 6 | C10: 20.4 | E10: 56 | F10: 20.3 | H10: 106 | K10: 156 | N10: =language!I1 -> inspector: | O10: Maier
B11: 7 | C11: 18.3 | E11: 57 | F11: 18.7 | H11: 107 | K11: 157 | N11: =language!J1 -> measuring dev: | O11: Waage 47.22452
B12: 8 | C12: 19.9 | E12: 58 | F12: 18.8 | H12: 108 | K12: 158 | N12: =language!K1 -> date: | O12: 2014-12-10
B13: 9 | C13: 18.7 | E13: 59 | F13: 19.4 | H13: 109 | K13: 159 | N13: =language!L1 -> attribute: | O13: Länge
B14: 10 | C14: 18 | E14: 60 | F14: 18.5 | H14: 110 | K14: 160 | N14: =language!M1 -> measuring unit: | O14: mm
B15: 11 | C15: 17.7 | E15: 61 | F15: 18.6 | H15: 111 | K15: 161 | N15: =language!N1 -> nominal value = | P15: 20
B16: 12 | C16: 19.1 | E16: 62 | F16: 19.6 | H16: 112 | K16: 162 | N16: =language!O1 -> lower spec. limit LSL | P16: 16
B17: 13 | C17: 19.7 | E17: 63 | F17: 18.5 | H17: 113 | K17: 163 | N17: =language!P1 -> upper spec. limit USL | P17: 23
B18: 14 | C18: 18.1 | E18: 64 | F18: 20 | H18: 114 | K18: 164 | N18: =language!Q1 -> number of classes histogram | P18: 20
B19: 15 | C19: 18.4 | E19: 65 | F19: 17.8 | H19: 115 | K19: 165 | N19: =language!R1 -> Cpk< | O19: 1.33 | P19: =language!V1 -> process not capable
B20: 16 | C20: 17.5 | E20: 66 | F20: 19.8 | H20: 116 | K20: 166 | N20: =language!S1 -> Cpk | O20: =language!U1 -> between | P20: =language!W1 -> process limited capable
B21: 17 | C21: 18.9 | E21: 67 | F21: 16.6 | H21: 117 | K21: 167 | N21: =language!T1 -> Cpk> | O21: 1.66 | P21: =language!X1 -> process capable
B22: 18 | C22: 19 | E22: 68 | F22: 19.4 | H22: 118 | K22: 168 | N22: =language!BP1 -> distribution | O22: =language!BR1 -> normal distribution
B23: 19 | C23: 20.5 | E23: 69 | F23: 19.3 | H23: 119 | K23: 169 | O23: =language!BS1 -> truncated normal distribution
B24: 20 | C24: 17.3 | E24: 70 | F24: 20.1 | H24: 120 | K24: 170
B25: 21 | C25: 18.3 | E25: 71 | F25: 20.5 | H25: 121 | K25: 171 | N25: =language!Y1 -> sample size | P25: =calculation!I25 -> 104
B26: 22 | C26: 18.4 | E26: 72 | F26: 20 | H26: 122 | K26: 172 | N26: =language!Z1 -> mid | P26: =calculation!I27 -> 18.87115385
B27: 23 | C27: 18.6 | E27: 73 | F27: 20.8 | H27: 123 | K27: 173 | N27: =language!AA1 -> standard deviation s | P27: =Standardabweichung -> 1.179079209
B28: 24 | C28: 19.8 | E28: 74 | F28: 17.7 | H28: 124 | K28: 174 | N28: =language!AB1 -> values are according Andersson Darling test | P28: =IF(calculation!I22<0.05,language!AD1,language!AC1) -> normal distributed
B29: 25 | C29: 20.2 | E29: 75 | F29: 18.9 | H29: 125 | K29: 175
B30: 26 | C30: 18.5 | E30: 76 | F30: 18.8 | H30: 126 | K30: 176
B31: 27 | C31: 18.5 | E31: 77 | F31: 16.4 | H31: 127 | K31: 177 | N31: =language!AP1 -> probability values | O31: =language!AL1 -> Cpkl | P31: =calculation!I31 -> 0.8116937984
B32: 28 | C32: 18 | E32: 78 | F32: 18.5 | H32: 128 | K32: 178 | O32: =language!AM1 -> Cpku | P32: =calculation!I32 -> 1.167251564
B33: 29 | C33: 20.9 | E33: 79 | F33: 19 | H33: 129 | K33: 179 | O33: =language!AN1 -> Cp | P33: =calculation!I30 -> 0.9894726812
B34: 30 | C34: 18.1 | E34: 80 | F34: 20.6 | H34: 130 | K34: 180 | O34: =language!AO1 -> Cpk | P34: =calculation!I33 -> 0.8116937984
B35: 31 | C35: 19.4 | E35: 81 | F35: 19.2 | H35: 131 | K35: 181 | N35: =language!AQ1 -> evaluation Cpk => | P35: =IF(P34<O19,P19,IF(P34>O21,P21,P20)) -> process not capable
B36: 32 | C36: 20.5 | E36: 82 | F36: 17.1 | H36: 132 | K36: 182
B37: 33 | C37: 20.4 | E37: 83 | F37: 16.3 | H37: 133 | K37: 183 | N37: =language!AR1 -> median | P37: =Median -> 18.9
B38: 34 | C38: 16.1 | E38: 84 | F38: 17.2 | H38: 134 | K38: 184 | N38: =language!AS1 -> range | P38: =Spannweite -> 5.4
B39: 35 | C39: 18.7 | E39: 85 | F39: 17.9 | H39: 135 | K39: 185 | N39: =language!AT1 -> minimum | P39: =Minimum -> 16.1
B40: 36 | C40: 18.8 | E40: 86 | F40: 19.1 | H40: 136 | K40: 186 | N40: =language!AU1 -> maximum | P40: =Maximum -> 21.5
B41: 37 | C41: 17.3 | E41: 87 | F41: 17.3 | H41: 137 | K41: 187
B42: 38 | C42: 18.1 | E42: 88 | F42: 19.4 | H42: 138 | K42: 188 | N42: =language!AV1 -> calculated performance
B43: 39 | C43: 19.9 | E43: 89 | F43: 18.3 | H43: 139 | K43: 189 | N43: =language!AW1 -> exceedance | O43: =language!AX1 -> pLSL | P43: =calculation!I35 -> 7444
B44: 40 | C44: 19.6 | E44: 90 | F44: 19.3 | H44: 140 | K44: 190 | O44: =language!AY1 -> pUSL | P44: =calculation!I34 -> 231
B45: 41 | C45: 18.4 | E45: 91 | F45: 17.2 | H45: 141 | K45: 191 | O45: =language!AZ1 -> p | P45: =P43+P44 -> 7675
B46: 42 | C46: 19.5 | E46: 92 | F46: 17.5 | H46: 142 | K46: 192
B47: 43 | C47: 16.8 | E47: 93 | F47: 19.6 | H47: 143 | K47: 193 | N47: =language!BA1 -> observed performance in ppm
B48: 44 | C48: 17.1 | E48: 94 | F48: 17.6 | H48: 144 | K48: 194 | N48: =language!AW1 -> exceedance | O48: =language!AX1 -> pLSL | P48: =BEOBPUGW -> 0 | R48: =language!BL1 -> If your measured value is one-sided limited, enter only the corresponding upper or lower limit value. With a one-sided limit, in the industrial environment only the Cpk is calclulated
B49: 45 | C49: 18.9 | E49: 95 | F49: 20 | H49: 145 | K49: 195 | O49: =language!AY1 -> pUSL | P49: =BEOBPOGW -> 0
B50: 46 | C50: 19.7 | E50: 96 | F50: 19.9 | H50: 146 | K50: 196 | O50: =language!AZ1 -> p | P50: =P49+P48 -> 0
B51: 47 | C51: 19.7 | E51: 97 | F51: 16.9 | H51: 147 | K51: 197
B52: 48 | C52: 19.2 | E52: 98 | F52: 19.5 | H52: 148 | K52: 198
B53: 49 | C53: 20.6 | E53: 99 | F53: 20.4 | H53: 149 | K53: 199
B54: 50 | C54: 20.1 | E54: 100 | F54: 19.1 | H54: 150 | K54: 200
B55: 50 | C55: 56 | E55: 100 | F55: 22 | H55: 150 | I55: 6 | K55: 200 | L55: 33

Sheet calculation (hidden)
A1: ["{\"ergebnisuservalidieren\":[\"user: max.mustermann@sixsigmablackbelt.de -> valid; cmk-> valid; licence key = AAABBB -> valid; date of licence; (2023-12-01) greater than today (2023-10-09) -> valid; calculation at 2023-10-09 22:40:13.802484; note: kostenlos\"],\"ergebnisuservalidieren_status\":[\"ja\"],\"pwertadtest\":[\"0.3953\"],\"Verteilung\":[\"normal\"],\"summe\":[1962.6],\"stichprobenumfang\":[104],\"sd\":[1.1790792094],\"mittelwert\":[18.8711538462],\"Lizenzdatum\":[\"01.12.2023\"],\"Notiz\":[\"kostenlos\"],\"cp\":[0.98947268124],\"cpu\":[0.8116937984],\"cpo\":[1.1672515641],\"cpk\":[0.8116937984],\"ppmo\":[231],\"ppmu\":[7444],\"platz1\":[\"platz1\"],\"platz2\":[\"platz1\"],\"platz3\":[\"platz1\"],\"Verteilung Diagramm\":[{\"qnorm\":15227525,\"dnorm\":2855},{\"qnorm\":16128205,\"dnorm\":22604},{\"qnorm\":16560201,\"dnorm\":49568},{\"qnorm\":16931741,\"dnorm\":87471},{\"qnorm\":17360103,\"dnorm\":148843},{\"qnorm\":17878815,\"dnorm\":237441},{\"qnorm\":18252844,\"dnorm\":294884},{\"qnorm\":18572437,\"dnorm\":327664},{\"qnorm\":18871153,\"dnorm\":338350},{\"qnorm\":19169870,\"dnorm\":327664},{\"qnorm\":19489463,\"dnorm\":294884},{\"qnorm\":19863491,\"dnorm\":237441},{\"qnorm\":20382204,\"dnorm\":148843},{\"qnorm\":20810566,\"dnorm\":87471},{\"qnorm\":21182106,\"dnorm\":49568},{\"qnorm\":21614102,\"dnorm\":22604},{\"qnorm\":22514782,\"dnorm\":2855},{\"dnorm\":0}]}"]
A2: =IF(B2=C2,0,1) -> 0 | B2: normal | C2: =M16 -> normal
A3: =IF(B3=C3,0,1) -> 0 | B3: 23 | C3: =O16 -> 23
A4: 0 | B4: 16 | C4: =Q16 -> 16
A5: =IF(B5=C5,0,1) -> 0 | B5: 20 | C5: =IF(input!C5="","",input!C5) -> 20 | D5: " | E5: =SUBSTITUTE(C5,",",".") -> 20 | F5: ", | G5: , | AE5: 1 | AF5: =IF((Anzahl>AE5),AE5,Anzahl) -> 1 | AG5: =IF(B5<>"",B5,#N/A) -> 20 | AH5: =IF(OGW="",#N/A,IF(B5<>"",OGW,#N/A)) -> 23 | AI5: =IF(UGW="",#N/A,IF(B5<>"",UGW,#N/A)) -> 16 | AJ5: =I27-Standardabweichung -> 17.69207464 | AK5: =fxds+Standardabweichung -> 20.05023306 | AL5: =fxds-2*Standardabweichung -> 16.51299543 | AM5: =fxds+2*Standardabweichung -> 21.22931226 | AN5: =fxds-3*Standardabweichung -> 15.33391622 | AO5: =fxds+3*Standardabweichung -> 22.40839147 | AP5: =fxds -> 18.87115385 | AR5: =IF(AND(B5<>"",B5<UGW),1,0) -> 0 | AS5: =IF(AND(B5<>"",B5>OGW),1,0) -> 0 | AW5: -6 | AX5: =fxds+AW5*Standardabweichung -> 11.79667859 | AY5: 3 | AZ5: =AY5*2 -> 6 | BA5: =AX5 -> 11.79667859 | BD5: 1 | BE5: =IF(B5="",NA(),SMALL(xi,BF5)) -> 16.1 | BF5: =IF(B5="","",1) -> 1 | BG5: =IF(B5="","",NORMSDIST((BE5-fxds)/Standardabweichung)) -> 0.00937991261 | BH5: =IF(B5="","",1-BG5) -> 0.9906200874 | BI5: =IF(IF(B5="","",SMALL(BG,BF5))=0,0.0001,IF(B5="","",SMALL(BG,BF5))) -> 0.01288781792 | BJ5: =IF(B5="","",(2*BF5-1)*(LN(BI5)+LN(BG5))) -> -9.020657594 | BK5: =IF(B5="",NA(),NORMSINV((BF5-0.3)/(Anzahl+0.4))) -> -2.472692113 | BN5: =Standardabweichung*BO5+fxds -> 22.40839147 | BO5: 3
A6: =IF(B6=C6,0,1) -> 0 | B6: 21 | C6: =IF(input!C6="","",input!C6) -> 21 | D6: " | E6: =SUBSTITUTE(C6,",",".") -> 21 | F6: ", | AE6: 2 | AF6: 2 | AG6: =IF(B6<>"",B6,#N/A) -> 21 | AH6: 23 | AI6: 16 | AJ6: =AJ5 -> 17.69207464 | AK6: 20.05023306 | AL6: 16.51299543 | AM6: 21.22931226 | AN6: 15.33391622 | AO6: 22.40839147 | AP6: 18.87115385 | AR6: 0 | AS6: 0 | AW6: -5 | AX6: 12.9757578 | AY6: 3 | AZ6: =AY6*2 -> 6 | BA6: =BA5 -> 11.79667859 | BD6: 2 | BE6: 16.3 | BF6: =IF(B6="","",1+BF5) -> 2 | BG6: 0.01460482117 | BH6: =IF(B6="","",1-BG6) -> 0.9853951788 | BI6: 0.03549700189 | BJ6: =IF(B6="","",(2*BF6-1)*(LN(BI6)+LN(BG6))) -> -22.69413188 | BK6: -2.137380578 | BN6: =Standardabweichung*BO6+fxds -> 18.87115385 | BO6: 0
A7: 0 | B7: 21.5 | C7: =IF(input!C7="","",input!C7) -> 21.5 | D7: " | E7: 21.5 | F7: ", | I7: string nach R | J7: =_xlfn.CONCAT(H16:R16,D5:F204,T16) -> "a":["max.mustermann@sixsigmablackbelt.de","AAABBB","normal","23","16","20", "21", "21.5", "19", "19", "20.4", "18.3", "19.9", "18.7", "18", "17.7", "19.1", "19.7", "18.1", "18.4", "17.5", "18.9", "19", "20.5", "17.3", "18.3", "18.4", "18.6", "19.8", "20.2", "18.5", "18.5", "18", "20.9", "18.1", "19.4", "20.5", "20.4", "16.1", "18.7", "18.8", "17.3", "18.1", "19.9", "19.6", "18.4", "19.5", "16.8", "17.1", "18.9", "19.7", "19.7", "19.2", "20.6", "20.1", "18.8", "17.1", "18.6", "18", "18.7", "20.3", "18.7", "18.8", "19.4", "18.5", "18.6", "19.6", "18.5", "20", "17.8", "19.8", "16.6", "19.4", "19.3", "20.1", "20.5", "20", "20.8", "17.7", "18.9", "18.8", "16.4", "18.5", "19", "20.6", "19.2", "17.1", "16.3", "17.2", "17.9", "19.1", "17.3", "19.4", "18.3", "19.3", "17.2", "17.5", "19.6", "17.6", "20", "19.9", "16.9", "19.5", "20.4", "19.1", "16.9", "19.5", "20.4", "19.1", "", "", "", "", "", "", "", "", "", "", "", "", "", "", "", "", "", "", "", "", "", "", "", "", "", "", "", "", "", "", "", "", "", "", "", "", "", "", "", "", "", "", "", "", "", "", "", "", "", "", "", "", "", "", "", "", "", "", "", "", "", "", "", "", "", "", "", "", "", "", "", "", "", "", "", "", "", "", "", "", "", "", "", "", "", "", "", "", "", "", "", "", "", "", "", ""] | AE7: 3 | AF7: 3 | AG7: 21.5 | AH7: 23 | AI7: 16 | AJ7: 17.69207464 | AK7: 20.05023306 | AL7: 16.51299543 | AM7: 21.22931226 | AN7: 15.33391622 | AO7: 22.40839147 | AP7: 18.87115385 | AR7: 0 | AS7: 0 | AW7: -4 | AX7: 14.15483701 | AY7: 3 | AZ7: 6 | BA7: =BA6 -> 11.79667859 | BD7: 3 | BE7: 16.4 | BF7: =IF(B7="","",1+BF6) -> 3 | BG7: 0.01804847648 | BH7: 0.9819515235 | BI7: 0.04265228726 | BJ7: -35.84684191 | BK7: -1.945422591 | BN7: =Standardabweichung*BO7+fxds -> 15.33391622 | BO7: -3
A8: 0 | B8: 19 | C8: =IF(input!C8="","",input!C8) -> 19 | D8: " | E8: 19 | F8: ", | AE8: 4 | AF8: 4 | AG8: 19 | AH8: 23 | AI8: 16 | AJ8: 17.69207464 | AK8: 20.05023306 | AL8: 16.51299543 | AM8: 21.22931226 | AN8: 15.33391622 | AO8: 22.40839147 | AP8: 18.87115385 | AR8: 0 | AS8: 0 | AW8: -2 | AX8: 16.51299543 | AY8: 3 | AZ8: 6 | BA8: 11.79667859 | BD8: 4 | BE8: 16.6 | BF8: 4 | BG8: 0.02703909566 | BH8: 0.9729609043 | BI8: 0.05093110449 | BJ8: -46.11427047 | BK8: -1.806237651
A9: 0 | B9: 19 | C9: =IF(input!C9="","",input!C9) -> 19 | D9: " | E9: 19 | F9: ", | AE9: 5 | AF9: 5 | AG9: 19 | AH9: 23 | AI9: 16 | AJ9: 17.69207464 | AK9: 20.05023306 | AL9: 16.51299543 | AM9: 21.22931226 | AN9: 15.33391622 | AO9: 22.40839147 | AP9: 18.87115385 | AR9: 0 | AS9: 0 | AW9: -1 | AX9: 17.69207464 | AY9: 3 | AZ9: 6 | BA9: 11.79667859 | BD9: 5 | BE9: 16.8 | BF9: 5 | BG9: 0.03949421394 | BH9: 0.9605057861 | BI9: 0.07128764025 | BJ9: -52.85370074 | BK9: -1.695195638
A10: 0 | B10: 20.4 | C10: =IF(input!C10="","",input!C10) -> 20.4 | D10: " | E10: 20.4 | F10: ", | AE10: 6 | AF10: 6 | AG10: 20.4 | AH10: 23 | AI10: 16 | AJ10: 17.69207464 | AK10: 20.05023306 | AL10: 16.51299543 | AM10: 21.22931226 | AN10: 15.33391622 | AO10: 22.40839147 | AP10: 18.87115385 | AR10: 0 | AS10: 0 | AW10: 1 | AX10: 20.05023306 | AY10: 3 | AZ10: 6 | BA10: 11.79667859 | BD10: 6 | BE10: 16.9 | BF10: 6 | BG10: 0.04728445785 | BH10: 0.9527155422 | BI10: 0.07128764025 | BJ10: -62.61866533 | BK10: -1.601820076
A11: 0 | B11: 18.3 | C11: =IF(input!C11="","",input!C11) -> 18.3 | D11: " | E11: 18.3 | F11: ", | AE11: 7 | AF11: 7 | AG11: 18.3 | AH11: 23 | AI11: 16 | AJ11: 17.69207464 | AK11: 20.05023306 | AL11: 16.51299543 | AM11: 21.22931226 | AN11: 15.33391622 | AO11: 22.40839147 | AP11: 18.87115385 | AR11: 0 | AS11: 0 | AW11: 2 | AX11: 21.22931226 | AY11: 3 | AZ11: 6 | BA11: 11.79667859 | BD11: 7 | BE11: 16.9 | BF11: 7 | BG11: 0.04728445785 | BH11: 0.9527155422 | BI11: 0.08356938508 | BJ11: -71.93747154 | BK11: -1.52063089
A12: 0 | B12: 19.9 | C12: =IF(input!C12="","",input!C12) -> 19.9 | D12: " | E12: 19.9 | F12: ", | AE12: 8 | AF12: 8 | AG12: 19.9 | AH12: 23 | AI12: 16 | AJ12: 17.69207464 | AK12: 20.05023306 | AL12: 16.51299543 | AM12: 21.22931226 | AN12: 15.33391622 | AO12: 22.40839147 | AP12: 18.87115385 | AR12: 0 | AS12: 0 | AW12: 4 | AX12: 23.58747068 | AY12: 3 | AZ12: 6 | BA12: 11.79667859 | BD12: 8 | BE12: 17.1 | BF12: 8 | BG12: 0.0665291859 | BH12: 0.9334708141 | BI12: 0.08356938508 | BJ12: -77.88288863 | BK12: -1.448384388
A13: 0 | B13: 18.7 | C13: =IF(input!C13="","",input!C13) -> 18.7 | D13: " | E13: 18.7 | F13: ", | AE13: 9 | AF13: 9 | AG13: 18.7 | AH13: 23 | AI13: 16 | AJ13: 17.69207464 | AK13: 20.05023306 | AL13: 16.51299543 | AM13: 21.22931226 | AN13: 15.33391622 | AO13: 22.40839147 | AP13: 18.87115385 | AR13: 0 | AS13: 0 | AW13: 5 | AX13: 24.76654989 | AY13: 3 | AZ13: 6 | BA13: 11.79667859 | BD13: 9 | BE13: 17.1 | BF13: 9 | BG13: 0.0665291859 | BH13: 0.9334708141 | BI13: 0.08356938508 | BJ13: -88.26727378 | BK13: -1.382994127
A14: 0 | B14: 18 | C14: =IF(input!C14="","",input!C14) -> 18 | D14: " | E14: 18 | F14: ", | AE14: 10 | AF14: 10 | AG14: 18 | AH14: 23 | AI14: 16 | AJ14: 17.69207464 | AK14: 20.05023306 | AL14: 16.51299543 | AM14: 21.22931226 | AN14: 15.33391622 | AO14: 22.40839147 | AP14: 18.87115385 | AR14: 0 | AS14: 0 | AW14: 6 | AX14: 25.9456291 | AY14: 3 | AZ14: 6 | BA14: 11.79667859 | BD14: 10 | BE14: 17.1 | BF14: 10 | BG14: 0.0665291859 | BH14: 0.9334708141 | BI14: 0.09737682785 | BJ14: -95.74634937 | BK14: -1.323034952
A15: 0 | B15: 17.7 | C15: =IF(input!C15="","",input!C15) -> 17.7 | D15: " | E15: 17.7 | F15: ", | I15: userapiname | K15: userapikey | M15: verteilung | O15: "OGW: | Q15: "UGW: | AE15: 11 | AF15: 11 | AG15: 17.7 | AH15: 23 | AI15: 16 | AJ15: 17.69207464 | AK15: 20.05023306 | AL15: 16.51299543 | AM15: 21.22931226 | AN15: 15.33391622 | AO15: 22.40839147 | AP15: 18.87115385 | AR15: 0 | AS15: 0 | AW15: -3 | AX15: 15.33391622 | AY15: 3 | AZ15: 6 | BA15: 11.79667859 | BD15: 11 | BE15: 17.2 | BF15: 11 | BG15: 0.07819205544 | BH15: 0.9218079446 | BI15: 0.09737682785 | BJ15: -102.4328389 | BK15: -1.267488025
A16: 0 | B16: 19.1 | C16: =IF(input!C16="","",input!C16) -> 19.1 | D16: " | E16: 19.1 | F16: ", | H16: "a":[" | I16: =info_setup!C5 -> max.mustermann@sixsigmablackbelt.de | J16: "," | K16: =info_setup!C6 -> AAABBB | L16: "," | M16: normal | N16: "," | O16: =IF(OGW="","",SUBSTITUTE(OGW,",",".")) -> 23 | P16: "," | Q16: =IF(UGW="","",SUBSTITUTE(UGW,",",".")) -> 16 | R16: ", | T16: ] | AE16: 12 | AF16: 12 | AG16: 19.1 | AH16: 23 | AI16: 16 | AJ16: 17.69207464 | AK16: 20.05023306 | AL16: 16.51299543 | AM16: 21.22931226 | AN16: 15.33391622 | AO16: 22.40839147 | AP16: 18.87115385 | AR16: 0 | AS16: 0 | AW16: 3 | AX16: 22.40839147 | AY16: 3 | AZ16: 6 | BA16: 11.79667859 | BD16: 12 | BE16: 17.2 | BF16: 12 | BG16: 0.07819205544 | BH16: 0.9218079446 | BI16: 0.09737682785 | BJ16: -112.1883474 | BK16: -1.215598434
A17: 0 | B17: 19.7 | C17: =IF(input!C17="","",input!C17) -> 19.7 | D17: " | E17: 19.7 | F17: ", | AE17: 13 | AF17: 13 | AG17: 19.7 | AH17: 23 | AI17: 16 | AJ17: 17.69207464 | AK17: 20.05023306 | AL17: 16.51299543 | AM17: 21.22931226 | AN17: 15.33391622 | AO17: 22.40839147 | AP17: 18.87115385 | AR17: 0 | AS17: 0 | BD17: 13 | BE17: 17.3 | BF17: 13 | BG17: 0.09134368181 | BH17: 0.9086563182 | BI17: 0.09737682785 | BJ17: -118.0573292 | BK17: -1.166790414
A18: 0 | B18: 18.1 | C18: =IF(input!C18="","",input!C18) -> 18.1 | D18: " | E18: 18.1 | F18: ", | AE18: 14 | AF18: 14 | AG18: 18.1 | AH18: 23 | AI18: 16 | AJ18: 17.69207464 | AK18: 20.05023306 | AL18: 16.51299543 | AM18: 21.22931226 | AN18: 15.33391622 | AO18: 22.40839147 | AP18: 18.87115385 | AR18: 0 | AS18: 0 | AV18: Mittelwert | AW18: =Mittelwert -> 18.87115385 | AX18: 3 | BD18: 14 | BE18: 17.3 | BF18: 14 | BG18: 0.09134368181 | BH18: 0.9086563182 | BI18: 0.1127883096 | BJ18: -123.5349562 | BK18: -1.120614225
A19: 0 | B19: 18.4 | C19: =IF(input!C19="","",input!C19) -> 18.4 | D19: " | E19: 18.4 | F19: ", | AE19: 15 | AF19: 15 | AG19: 18.4 | AH19: 23 | AI19: 16 | AJ19: 17.69207464 | AK19: 20.05023306 | AL19: 16.51299543 | AM19: 21.22931226 | AN19: 15.33391622 | AO19: 22.40839147 | AP19: 18.87115385 | AR19: 0 | AS19: 0 | AV19: OGW | AW19: =OGW -> 23 | AX19: 3 | BD19: 15 | BE19: 17.3 | BF19: 15 | BG19: 0.09134368181 | BH19: 0.9086563182 | BI19: 0.1298669582 | BJ19: -128.5967565 | BK19: -1.07671145
A20: 0 | B20: 17.5 | C20: =IF(input!C20="","",input!C20) -> 17.5 | D20: " | E20: 17.5 | F20: ", | H20: ergebnisuservalidieren:user: max.mustermann@sixsigmablackbelt.de -> valid; cmk-> valid; licence key = AAABBB -> valid; date of licence; (2023-12-01) greater than today (2023-10-09) -> valid; calculation at 2023-10-09 22:40:13.802484; note: kostenlos | AE20: 16 | AF20: 16 | AG20: 17.5 | AH20: 23 | AI20: 16 | AJ20: 17.69207464 | AK20: 20.05023306 | AL20: 16.51299543 | AM20: 21.22931226 | AN20: 15.33391622 | AO20: 22.40839147 | AP20: 18.87115385 | AR20: 0 | AS20: 0 | AV20: UGW | AW20: =UGW -> 16 | AX20: 3 | BD20: 16 | BE20: 17.5 | BF20: 16 | BG20: 0.1224345856 | BH20: 0.8775654144 | BI20: 0.1486575549 | BJ20: -124.1949371 | BK20: -1.034791521
A21: 0 | B21: 18.9 | C21: =IF(input!C21="","",input!C21) -> 18.9 | D21: " | E21: 18.9 | F21: ", | H21: ja | I21: =H21 -> ja | AE21: 17 | AF21: 17 | AG21: 18.9 | AH21: 23 | AI21: 16 | AJ21: 17.69207464 | AK21: 20.05023306 | AL21: 16.51299543 | AM21: 21.22931226 | AN21: 15.33391622 | AO21: 22.40839147 | AP21: 18.87115385 | AR21: 0 | AS21: 0 | AV21: Sollwert | AW21: =Sollwert -> 20 | AX21: 3 | BD21: 17 | BE21: 17.5 | BF21: 17 | BG21: 0.1224345856 | BH21: 0.8775654144 | BI21: 0.1486575549 | BJ21: -132.2075137 | BK21: -0.994615365
A22: 0 | B22: 19 | C22: =IF(input!C22="","",input!C22) -> 19 | D22: " | E22: 19 | F22: ", | H22: 0.3953 | I22: =H22 -> 0.3953 | AE22: 18 | AF22: 18 | AG22: 19 | AH22: 23 | AI22: 16 | AJ22: =AJ21 -> 17.69207464 | AK22: 20.05023306 | AL22: 16.51299543 | AM22: 21.22931226 | AN22: 15.33391622 | AO22: 22.40839147 | AP22: 18.87115385 | AR22: 0 | AS22: 0 | BD22: 18 | BE22: 17.6 | BF22: 18 | BG22: 0.1404967323 | BH22: 0.8595032677 | BI22: 0.1691836152 | BJ22: -130.8769602 | BK22: -0.9559837196
A23: 0 | B23: 20.5 | C23: =IF(input!C23="","",input!C23) -> 20.5 | D23: " | E23: 20.5 | F23: ", | H23: normal | I23: normal | R23: =Maßeinheit -> mm | S23: =Merkmal -> Länge | T23: =IF(UGW<>"",six_cmu(Mittelwert,UGW,Standardabweichung),"") -> 0.8116937984 | U23: =MEDIAN(xi) -> 18.9 | V23: =IF(UGW<>0,NORMDIST(UGW,Mittelwert,Standardabweichung,1)*1000000,0) -> 7444.220098 | W23: =IF(UGW<>"",AR205/S24*1000000,0) -> 0 | AE23: 19 | AF23: 19 | AG23: 20.5 | AH23: 23 | AI23: 16 | AJ23: 17.69207464 | AK23: 20.05023306 | AL23: 16.51299543 | AM23: 21.22931226 | AN23: 15.33391622 | AO23: 22.40839147 | AP23: 18.87115385 | AR23: 0 | AS23: 0 | BD23: 19 | BE23: 17.7 | BF23: 19 | BG23: 0.1602871637 | BH23: 0.8397128363 | BI23: 0.1691836152 | BJ23: -133.479682 | BK23: -0.9187285975
A24: 0 | B24: 17.3 | C24: =IF(input!C24="","",input!C24) -> 17.3 | D24: " | E24: 17.3 | F24: ", | H24: 1962.6 | I24: 1962.6 | R24: =Sollwert -> 20 | S24: =six_a(xi) -> 104 | T24: =IF(OGW<>"",six_cmo(OGW,Mittelwert,Standardabweichung),"") -> 1.167251564 | U24: =Maximum-Minimum -> 5.4 | V24: =IF(OGW<>"",(1-NORMDIST(OGW,Mittelwert,Standardabweichung,1))*1000000,0) -> 231.102483 | W24: =IF(OGW<>"",AS205/S24*1000000,0) -> 0 | AE24: 20 | AF24: 20 | AG24: 17.3 | AH24: 23 | AI24: 16 | AJ24: 17.69207464 | AK24: 20.05023306 | AL24: 16.51299543 | AM24: 21.22931226 | AN24: 15.33391622 | AO24: 22.40839147 | AP24: 18.87115385 | AR24: 0 | AS24: 0 | BD24: 20 | BE24: 17.7 | BF24: 20 | BG24: 0.1602871637 | BH24: 0.8397128363 | BI24: 0.1691836152 | BJ24: -140.6947999 | BK24: -0.8827069317
A25: 0 | B25: 18.3 | C25: =IF(input!C25="","",input!C25) -> 18.3 | D25: " | E25: 18.3 | F25: ", | H25: 104 | I25: 104 | R25: =UGW -> 16 | S25: =six_m(xi) -> 18.87115385 | T25: =IF(OR(UGW="",OGW=""),"",six_cm(OGW,UGW,Standardabweichung)) -> 0.9894726812 | U25: =MIN(xi) -> 16.1 | V25: =BERPOGW+BERPUGW -> 7675 | W25: =W24+W23 -> 0 | AE25: 21 | AF25: 21 | AG25: 18.3 | AH25: 23 | AI25: 16 | AJ25: 17.69207464 | AK25: 20.05023306 | AL25: 16.51299543 | AM25: 21.22931226 | AN25: 15.33391622 | AO25: 22.40839147 | AP25: 18.87115385 | AR25: 0 | AS25: 0 | BD25: 21 | BE25: 17.8 | BF25: 21 | BG25: 0.1818159287 | BH25: 0.8181840713 | BI25: 0.1691836152 | BJ25: -142.7427775 | BK25: -0.8477957612
A26: 0 | B26: 18.4 | C26: =IF(input!C26="","",input!C26) -> 18.4 | D26: " | E26: 18.4 | F26: ", | H26: 1.179079209 | I26: 1.179079209 | R26: =OGW -> 23 | S26: =six_st(xi) -> 1.179079209 | T26: =IF(OGW="",CMU,IF(UGW="",CMO,six_ck(CMO,CMU))) -> 0.8116937984 | U26: =MAX(xi) -> 21.5 | AE26: 22 | AF26: 22 | AG26: 18.4 | AH26: 23 | AI26: 16 | AJ26: 17.69207464 | AK26: 20.05023306 | AL26: 16.51299543 | AM26: 21.22931226 | AN26: 15.33391622 | AO26: 22.40839147 | AP26: 18.87115385 | AR26: 0 | AS26: 0 | BD26: 22 | BE26: 17.9 | BF26: 22 | BG26: 0.2050679619 | BH26: 0.7949320381 | BI26: 0.1914448165 | BJ26: -139.2154889 | BK26: -0.8138885298
A27: 0 | B27: 18.6 | C27: =IF(input!C27="","",input!C27) -> 18.6 | D27: " | E27: 18.6 | F27: ", | H27: 18.87115385 | I27: 18.87115385 | K27: normal | S27: Stichprobe chronologisch | T27: OGW | AE27: 23 | AF27: 23 | AG27: 18.6 | AH27: 23 | AI27: 16 | AJ27: 17.69207464 | AK27: 20.05023306 | AL27: 16.51299543 | AM27: 21.22931226 | AN27: 15.33391622 | AO27: 22.40839147 | AP27: 18.87115385 | AR27: 0 | AS27: 0 | BD27: 23 | BE27: 18 | BF27: 23 | BG27: 0.2300013167 | BH27: 0.7699986833 | BI27: 0.1914448165 | BJ27: -140.5271665 | BK27: -0.7808921994
A28: 0 | B28: 19.8 | C28: =IF(input!C28="","",input!C28) -> 19.8 | D28: " | E28: 19.8 | F28: ", | H28: 01.12.2023 | I28: 01.12.2023 | K28: betrag1 | S28: Wahrscheinlichkeitsnetz | T28: UGW | AE28: 24 | AF28: 24 | AG28: 19.8 | AH28: 23 | AI28: 16 | AJ28: 17.69207464 | AK28: 20.05023306 | AL28: 16.51299543 | AM28: 21.22931226 | AN28: 15.33391622 | AO28: 22.40839147 | AP28: 18.87115385 | AR28: 0 | AS28: 0 | BD28: 24 | BE28: 18 | BF28: 24 | BG28: 0.2300013167 | BH28: 0.7699986833 | BI28: 0.1914448165 | BJ28: -146.7728183 | BK28: -0.7487249731
A29: 0 | B29: 20.2 | C29: =IF(input!C29="","",input!C29) -> 20.2 | D29: " | E29: 20.2 | F29: ", | H29: kostenlos | I29: kostenlos | S29: Test auf Normalverteilung (Anderson Darling) | T29: ="+ 3 Sigma" -> + 3 Sigma | AE29: 25 | AF29: 25 | AG29: 20.2 | AH29: 23 | AI29: 16 | AJ29: 17.69207464 | AK29: 20.05023306 | AL29: 16.51299543 | AM29: 21.22931226 | AN29: 15.33391622 | AO29: 22.40839147 | AP29: 18.87115385 | AR29: 0 | AS29: 0 | BD29: 25 | BE29: 18 | BF29: 25 | BG29: 0.2300013167 | BH29: 0.7699986833 | BI29: 0.2154149003 | BJ29: -147.2381198 | BK29: -0.7173144767
A30: 0 | B30: 18.5 | C30: =IF(input!C30="","",input!C30) -> 18.5 | D30: " | E30: 18.5 | F30: ", | H30: 0.9894726812 | I30: =IF(H30="","",H30) -> 0.9894726812 | S30: Prozess- und Maschinenfähigkeit | T30: ="- 3 Sigma" -> - 3 Sigma | AE30: 26 | AF30: 26 | AG30: 18.5 | AH30: 23 | AI30: 16 | AJ30: 17.69207464 | AK30: 20.05023306 | AL30: 16.51299543 | AM30: 21.22931226 | AN30: 15.33391622 | AO30: 22.40839147 | AP30: 18.87115385 | AR30: 0 | AS30: 0 | BD30: 26 | BE30: 18.1 | BF30: 26 | BG30: 0.2565460557 | BH30: 0.7434539443 | BI30: 0.2154149003 | BJ30: -147.6774573 | BK30: -0.6865962936
A31: 0 | B31: 18.5 | C31: =IF(input!C31="","",input!C31) -> 18.5 | D31: " | E31: 18.5 | F31: ", | H31: 0.8116937984 | I31: =IF(H31="","",H31) -> 0.8116937984 | T31: Mittelwert | AE31: 27 | AF31: 27 | AG31: 18.5 | AH31: 23 | AI31: 16 | AJ31: 17.69207464 | AK31: 20.05023306 | AL31: 16.51299543 | AM31: 21.22931226 | AN31: 15.33391622 | AO31: 22.40839147 | AP31: 18.87115385 | AR31: 0 | AS31: 0 | BD31: 27 | BE31: 18.1 | BF31: 27 | BG31: 0.2565460557 | BH31: 0.7434539443 | BI31: 0.2410401716 | BJ31: -147.5116537 | BK31: -0.6565127715
A32: 0 | B32: 18 | C32: =IF(input!C32="","",input!C32) -> 18 | D32: " | E32: 18 | F32: ", | H32: 1.167251564 | I32: 1.167251564 | T32: Sollwert | AE32: 28 | AF32: 28 | AG32: 18 | AH32: 23 | AI32: 16 | AJ32: 17.69207464 | AK32: 20.05023306 | AL32: 16.51299543 | AM32: 21.22931226 | AN32: 15.33391622 | AO32: 22.40839147 | AP32: 18.87115385 | AR32: 0 | AS32: 0 | BD32: 28 | BE32: 18.1 | BF32: 28 | BG32: 0.2565460557 | BH32: 0.7434539443 | BI32: 0.2410401716 | BJ32: -153.0781312 | BK32: -0.627012043
A33: 0 | B33: 20.9 | C33: =IF(input!C33="","",input!C33) -> 20.9 | D33: " | E33: 20.9 | F33: ", | H33: 0.8116937984 | I33: 0.8116937984 | R33: OGW | S33: UGW | T33: =" - 1 Sigma" -> - 1 Sigma | U33: =" + 1 Sigma" -> + 1 Sigma | V33: ="- 2 Sigma" -> - 2 Sigma | W33: =" + 2 Sigma" -> + 2 Sigma | X33: =" - 3 Sigma" -> - 3 Sigma | Y33: =" + 3 Sigma" -> + 3 Sigma | Z33: =" Mittelwert" -> Mittelwert | AE33: 29 | AF33: 29 | AG33: 20.9 | AH33: 23 | AI33: 16 | AJ33: 17.69207464 | AK33: 20.05023306 | AL33: 16.51299543 | AM33: 21.22931226 | AN33: 15.33391622 | AO33: 22.40839147 | AP33: 18.87115385 | AR33: 0 | AS33: 0 | BD33: 29 | BE33: 18.3 | BF33: 29 | BG33: 0.314048639 | BH33: 0.685951361 | BI33: 0.2410401716 | BJ33: -147.1169473 | BK33: -0.5980472154
A34: 0 | B34: 18.1 | C34: =IF(input!C34="","",input!C34) -> 18.1 | D34: " | E34: 18.1 | F34: ", | H34: 231 | I34: =H34 -> 231 | R34: =IF(OGW<>"","OGW","") -> OGW | S34: =IF(UGW<>"","UGW","") -> UGW | AE34: 30 | AF34: 30 | AG34: 18.1 | AH34: 23 | AI34: 16 | AJ34: 17.69207464 | AK34: 20.05023306 | AL34: 16.51299543 | AM34: 21.22931226 | AN34: 15.33391622 | AO34: 22.40839147 | AP34: 18.87115385 | AR34: 0 | AS34: 0 | BD34: 30 | BE34: 18.3 | BF34: 30 | BG34: 0.314048639 | BH34: 0.685951361 | BI34: 0.2682386967 | BJ34: -145.9710409 | BK34: -0.5695756949
A35: 0 | B35: 19.4 | C35: =IF(input!C35="","",input!C35) -> 19.4 | D35: " | E35: 19.4 | F35: ", | H35: 7444 | I35: =H35 -> 7444 | AE35: 31 | AF35: 31 | AG35: 19.4 | AH35: 23 | AI35: 16 | AJ35: 17.69207464 | AK35: 20.05023306 | AL35: 16.51299543 | AM35: 21.22931226 | AN35: 15.33391622 | AO35: 22.40839147 | AP35: 18.87115385 | AR35: 0 | AS35: 0 | BD35: 31 | BE35: 18.3 | BF35: 31 | BG35: 0.314048639 | BH35: 0.685951361 | BI35: 0.2682386967 | BJ35: -150.9192118 | BK35: -0.5415586189
A36: 0 | B36: 20.5 | C36: =IF(input!C36="","",input!C36) -> 20.5 | D36: " | E36: 20.5 | F36: ", | H36: platz1:platz1 | I36: =H36/1000000 ->  | AE36: 32 | AF36: 32 | AG36: 20.5 | AH36: 23 | AI36: 16 | AJ36: 17.69207464 | AK36: 20.05023306 | AL36: 16.51299543 | AM36: 21.22931226 | AN36: 15.33391622 | AO36: 22.40839147 | AP36: 18.87115385 | AR36: 0 | AS36: 0 | BD36: 32 | BE36: 18.4 | BF36: 32 | BG36: 0.3447275169 | BH36: 0.6552724831 | BI36: 0.2682386967 | BJ36: -149.995378 | BK36: -0.5139603769
A37: 0 | B37: 20.4 | C37: =IF(input!C37="","",input!C37) -> 20.4 | D37: " | E37: 20.4 | F37: ", | H37: platz2:platz1 | AE37: 33 | AF37: =IF((Anzahl>AE37),AE37,Anzahl) -> 33 | AG37: 20.4 | AH37: =IF(OGW="",#N/A,IF(B37<>"",OGW,#N/A)) -> 23 | AI37: =IF(UGW="",#N/A,IF(B37<>"",UGW,#N/A)) -> 16 | AJ37: 17.69207464 | AK37: 20.05023306 | AL37: 16.51299543 | AM37: 21.22931226 | AN37: 15.33391622 | AO37: 22.40839147 | AP37: 18.87115385 | AR37: =IF(AND(B37<>"",B37<UGW),1,0) -> 0 | AS37: =IF(AND(B37<>"",B37>OGW),1,0) -> 0 | BD37: 33 | BE37: =IF(B37="",NA(),SMALL(xi,BF37)) -> 18.4 | BF37: 33 | BG37: =IF(B37="","",NORMSDIST((BE37-fxds)/Standardabweichung)) -> 0.3447275169 | BH37: 0.6552724831 | BI37: =IF(IF(B37="","",SMALL(BG,BF37))=0,0.0001,IF(B37="","",SMALL(BG,BF37))) -> 0.2969002814 | BJ37: -148.1583954 | BK37: =IF(B37="",NA(),NORMSINV((BF37-0.3)/(Anzahl+0.4))) -> -0.4867482021
A38: 0 | B38: 16.1 | C38: =IF(input!C38="","",input!C38) -> 16.1 | D38: " | E38: 16.1 | F38: ", | H38: platz3:platz1 | AE38: 34 | AF38: 34 | AG38: 16.1 | AH38: 23 | AI38: 16 | AJ38: =AJ37 -> 17.69207464 | AK38: 20.05023306 | AL38: 16.51299543 | AM38: 21.22931226 | AN38: 15.33391622 | AO38: 22.40839147 | AP38: 18.87115385 | AR38: 0 | AS38: 0 | BD38: 34 | BE38: 18.4 | BF38: 34 | BG38: 0.3447275169 | BH38: 0.6552724831 | BI38: 0.2969002814 | BJ38: -152.7171153 | BK38: -0.4598918231
A39: 0 | B39: 18.7 | C39: =IF(input!C39="","",input!C39) -> 18.7 | D39: " | E39: 18.7 | F39: ", | H39: 15227525 | I39: 15.227525 | AE39: 35 | AF39: 35 | AG39: 18.7 | AH39: 23 | AI39: 16 | AJ39: 17.69207464 | AK39: 20.05023306 | AL39: 16.51299543 | AM39: 21.22931226 | AN39: 15.33391622 | AO39: 22.40839147 | AP39: 18.87115385 | AR39: 0 | AS39: 0 | BD39: 35 | BE39: 18.5 | BF39: 35 | BG39: 0.3764632888 | BH39: 0.6235367112 | BI39: 0.2969002814 | BJ39: -151.1992648 | BK39: -0.4333631628
A40: 0 | B40: 18.8 | C40: =IF(input!C40="","",input!C40) -> 18.8 | D40: " | E40: 18.8 | F40: ", | H40: 2855 | I40: 0.002855 | AE40: 36 | AF40: 36 | AG40: 18.8 | AH40: 23 | AI40: 16 | AJ40: 17.69207464 | AK40: 20.05023306 | AL40: 16.51299543 | AM40: 21.22931226 | AN40: 15.33391622 | AO40: 22.40839147 | AP40: 18.87115385 | AR40: 0 | AS40: 0 | BD40: 36 | BE40: 18.5 | BF40: 36 | BG40: 0.3764632888 | BH40: 0.6235367112 | BI40: 0.3268872805 | BJ40: -148.7502979 | BK40: -0.407136079
A41: 0 | B41: 17.3 | C41: =IF(input!C41="","",input!C41) -> 17.3 | D41: " | E41: 17.3 | F41: ", | H41: 16128205 | I41: 16.128205 | AE41: 37 | AF41: 37 | AG41: 17.3 | AH41: 23 | AI41: 16 | AJ41: 17.69207464 | AK41: 20.05023306 | AL41: 16.51299543 | AM41: 21.22931226 | AN41: 15.33391622 | AO41: 22.40839147 | AP41: 18.87115385 | AR41: 0 | AS41: 0 | BD41: 37 | BE41: 18.5 | BF41: 37 | BG41: 0.3764632888 | BH41: 0.6235367112 | BI41: 0.3268872805 | BJ41: -152.9404471 | BK41: -0.3811861383
A42: 0 | B42: 18.1 | C42: =IF(input!C42="","",input!C42) -> 18.1 | D42: " | E42: 18.1 | F42: ", | H42: 22604 | I42: 0.022604 | AE42: 38 | AF42: 38 | AG42: 18.1 | AH42: 23 | AI42: 16 | AJ42: 17.69207464 | AK42: 20.05023306 | AL42: 16.51299543 | AM42: 21.22931226 | AN42: 15.33391622 | AO42: 22.40839147 | AP42: 18.87115385 | AR42: 0 | AS42: 0 | BD42: 38 | BE42: 18.5 | BF42: 38 | BG42: 0.3764632888 | BH42: 0.6235367112 | BI42: 0.3268872805 | BJ42: -157.1305964 | BK42: -0.3554904178
A43: 0 | B43: 19.9 | C43: =IF(input!C43="","",input!C43) -> 19.9 | D43: " | E43: 19.9 | F43: ", | H43: 16560201 | I43: 16.560201 | AE43: 39 | AF43: 39 | AG43: 19.9 | AH43: 23 | AI43: 16 | AJ43: 17.69207464 | AK43: 20.05023306 | AL43: 16.51299543 | AM43: 21.22931226 | AN43: 15.33391622 | AO43: 22.40839147 | AP43: 18.87115385 | AR43: 0 | AS43: 0 | BD43: 39 | BE43: 18.5 | BF43: 39 | BG43: 0.3764632888 | BH43: 0.6235367112 | BI43: 0.3268872805 | BJ43: -161.3207456 | BK43: -0.3300273317
A44: 0 | B44: 19.6 | C44: =IF(input!C44="","",input!C44) -> 19.6 | D44: " | E44: 19.6 | F44: ", | H44: 49568 | I44: 0.049568 | AE44: 40 | AF44: 40 | AG44: 19.6 | AH44: 23 | AI44: 16 | AJ44: 17.69207464 | AK44: 20.05023306 | AL44: 16.51299543 | AM44: 21.22931226 | AN44: 15.33391622 | AO44: 22.40839147 | AP44: 18.87115385 | AR44: 0 | AS44: 0 | BD44: 40 | BE44: 18.6 | BF44: 40 | BG44: 0.4090572111 | BH44: 0.5909427889 | BI44: 0.3580362569 | BJ44: -151.7606806 | BK44: -0.3047764768
A45: 0 | B45: 18.4 | C45: =IF(input!C45="","",input!C45) -> 18.4 | D45: " | E45: 18.4 | F45: ", | H45: 16931741 | I45: 16.931741 | AE45: 41 | AF45: 41 | AG45: 18.4 | AH45: 23 | AI45: 16 | AJ45: 17.69207464 | AK45: 20.05023306 | AL45: 16.51299543 | AM45: 21.22931226 | AN45: 15.33391622 | AO45: 22.40839147 | AP45: 18.87115385 | AR45: 0 | AS45: 0 | BD45: 41 | BE45: 18.6 | BF45: 41 | BG45: 0.4090572111 | BH45: 0.5909427889 | BI45: 0.3580362569 | BJ45: -155.6027232 | BK45: -0.2797184963
A46: 0 | B46: 19.5 | C46: =IF(input!C46="","",input!C46) -> 19.5 | D46: " | E46: 19.5 | F46: ", | H46: 87471 | I46: 0.087471 | AE46: 42 | AF46: 42 | AG46: 19.5 | AH46: 23 | AI46: 16 | AJ46: 17.69207464 | AK46: 20.05023306 | AL46: 16.51299543 | AM46: 21.22931226 | AN46: 15.33391622 | AO46: 22.40839147 | AP46: 18.87115385 | AR46: 0 | AS46: 0 | BD46: 42 | BE46: 18.6 | BF46: 42 | BG46: 0.4090572111 | BH46: 0.5909427889 | BI46: 0.3901604711 | BJ46: -152.3130852 | BK46: -0.2548349569
A47: 0 | B47: 16.8 | C47: =IF(input!C47="","",input!C47) -> 16.8 | D47: " | E47: 16.8 | F47: ", | H47: 17360103 | I47: 17.360103 | AE47: 43 | AF47: 43 | AG47: 16.8 | AH47: 23 | AI47: 16 | AJ47: 17.69207464 | AK47: 20.05023306 | AL47: 16.51299543 | AM47: 21.22931226 | AN47: 15.33391622 | AO47: 22.40839147 | AP47: 18.87115385 | AR47: 0 | AS47: 0 | BD47: 43 | BE47: 18.7 | BF47: 43 | BG47: 0.4422927059 | BH47: 0.5577072941 | BI47: 0.3901604711 | BJ47: -149.3433464 | BK47: -0.230108239
A48: 0 | B48: 17.1 | C48: =IF(input!C48="","",input!C48) -> 17.1 | D48: " | E48: 17.1 | F48: ", | H48: 148843 | I48: 0.148843 | AE48: 44 | AF48: 44 | AG48: 17.1 | AH48: 23 | AI48: 16 | AJ48: 17.69207464 | AK48: 20.05023306 | AL48: 16.51299543 | AM48: 21.22931226 | AN48: 15.33391622 | AO48: 22.40839147 | AP48: 18.87115385 | AR48: 0 | AS48: 0 | BD48: 44 | BE48: 18.7 | BF48: 44 | BG48: 0.4422927059 | BH48: 0.5577072941 | BI48: 0.4230531474 | BJ48: -145.8155539 | BK48: -0.2055214374
A49: 0 | B49: 18.9 | C49: =IF(input!C49="","",input!C49) -> 18.9 | D49: " | E49: 18.9 | F49: ", | H49: 17878815 | I49: 17.878815 | AE49: 45 | AF49: 45 | AG49: 18.9 | AH49: 23 | AI49: 16 | AJ49: 17.69207464 | AK49: 20.05023306 | AL49: 16.51299543 | AM49: 21.22931226 | AN49: 15.33391622 | AO49: 22.40839147 | AP49: 18.87115385 | AR49: 0 | AS49: 0 | BD49: 45 | BE49: 18.7 | BF49: 45 | BG49: 0.4422927059 | BH49: 0.5577072941 | BI49: 0.4230531474 | BJ49: -149.1676356 | BK49: -0.1810582698
A50: 0 | B50: 19.7 | C50: =IF(input!C50="","",input!C50) -> 19.7 | D50: " | E50: 19.7 | F50: ", | H50: 237441 | I50: 0.237441 | AE50: 46 | AF50: 46 | AG50: 19.7 | AH50: 23 | AI50: 16 | AJ50: 17.69207464 | AK50: 20.05023306 | AL50: 16.51299543 | AM50: 21.22931226 | AN50: 15.33391622 | AO50: 22.40839147 | AP50: 18.87115385 | AR50: 0 | AS50: 0 | BD50: 46 | BE50: 18.7 | BF50: 46 | BG50: 0.4422927059 | BH50: 0.5577072941 | BI50: 0.4230531474 | BJ50: -152.5197173 | BK50: -0.1567029942
A51: 0 | B51: 19.7 | C51: =IF(input!C51="","",input!C51) -> 19.7 | D51: " | E51: 19.7 | F51: ", | H51: 18252844 | I51: 18.252844 | AE51: 47 | AF51: 47 | AG51: 19.7 | AH51: 23 | AI51: 16 | AJ51: 17.69207464 | AK51: 20.05023306 | AL51: 16.51299543 | AM51: 21.22931226 | AN51: 15.33391622 | AO51: 22.40839147 | AP51: 18.87115385 | AR51: 0 | AS51: 0 | BD51: 47 | BE51: 18.8 | BF51: 47 | BG51: 0.4759396506 | BH51: 0.5240603494 | BI51: 0.4230531474 | BJ51: -149.0531163 | BK51: -0.132440332
A52: 0 | B52: 19.2 | C52: =IF(input!C52="","",input!C52) -> 19.2 | D52: " | E52: 19.2 | F52: ", | H52: 294884 | I52: 0.294884 | AE52: 48 | AF52: 48 | AG52: 19.2 | AH52: 23 | AI52: 16 | AJ52: 17.69207464 | AK52: 20.05023306 | AL52: 16.51299543 | AM52: 21.22931226 | AN52: 15.33391622 | AO52: 22.40839147 | AP52: 18.87115385 | AR52: 0 | AS52: 0 | BD52: 48 | BE52: 18.8 | BF52: 48 | BG52: 0.4759396506 | BH52: 0.5240603494 | BI52: 0.4564914229 | BJ52: -145.0317106 | BK52: -0.108255396
A53: 0 | B53: 20.6 | C53: =IF(input!C53="","",input!C53) -> 20.6 | D53: " | E53: 20.6 | F53: ", | H53: 18572437 | I53: 18.572437 | AE53: 49 | AF53: 49 | AG53: 20.6 | AH53: 23 | AI53: 16 | AJ53: 17.69207464 | AK53: 20.05023306 | AL53: 16.51299543 | AM53: 21.22931226 | AN53: 15.33391622 | AO53: 22.40839147 | AP53: 18.87115385 | AR53: 0 | AS53: 0 | BD53: 49 | BE53: 18.8 | BF53: 49 | BG53: 0.4759396506 | BH53: 0.5240603494 | BI53: 0.4564914229 | BJ53: -148.0850098 | BK53: -0.08413362368
A54: 0 | B54: 20.1 | C54: =IF(input!C54="","",input!C54) -> 20.1 | D54: " | E54: 20.1 | F54: ", | H54: 327664 | I54: 0.327664 | AE54: 50 | AF54: 50 | AG54: 20.1 | AH54: 23 | AI54: 16 | AJ54: =AJ53 -> 17.69207464 | AK54: 20.05023306 | AL54: 16.51299543 | AM54: 21.22931226 | AN54: 15.33391622 | AO54: 22.40839147 | AP54: 18.87115385 | AR54: 0 | AS54: 0 | BD54: 50 | BE54: 18.8 | BF54: 50 | BG54: 0.4759396506 | BH54: 0.5240603494 | BI54: 0.4564914229 | BJ54: -151.1383089 | BK54: -0.0600607133
A55: 0 | B55: 18.8 | C55: =IF(input!F5="","",input!F5) -> 18.8 | D55: " | E55: 18.8 | F55: ", | H55: 18871153 | I55: 18.871153 | AE55: 51 | AF55: 51 | AG55: 18.8 | AH55: 23 | AI55: 16 | AJ55: 17.69207464 | AK55: 20.05023306 | AL55: 16.51299543 | AM55: 21.22931226 | AN55: 15.33391622 | AO55: 22.40839147 | AP55: 18.87115385 | AR55: 0 | AS55: 0 | BD55: 51 | BE55: 18.9 | BF55: 51 | BG55: 0.5097591429 | BH55: 0.4902408571 | BI55: 0.4564914229 | BJ55: -147.2582325 | BK55: -0.03602256317
A56: 0 | B56: 17.1 | C56: =IF(input!F6="","",input!F6) -> 17.1 | D56: " | E56: 17.1 | F56: ", | H56: 338350 | I56: 0.33835 | AE56: 52 | AF56: 52 | AG56: 17.1 | AH56: 23 | AI56: 16 | AJ56: 17.69207464 | AK56: 20.05023306 | AL56: 16.51299543 | AM56: 21.22931226 | AN56: 15.33391622 | AO56: 22.40839147 | AP56: 18.87115385 | AR56: 0 | AS56: 0 | BD56: 52 | BE56: 18.9 | BF56: 52 | BG56: 0.5097591429 | BH56: 0.4902408571 | BI56: 0.4902408571 | BJ56: -142.8275659 | BK56: -0.01200521306
A57: 0 | B57: 18.6 | C57: =IF(input!F7="","",input!F7) -> 18.6 | D57: " | E57: 18.6 | F57: ", | H57: 19169870 | I57: 19.16987 | AE57: 53 | AF57: 53 | AG57: 18.6 | AH57: 23 | AI57: 16 | AJ57: 17.69207464 | AK57: 20.05023306 | AL57: 16.51299543 | AM57: 21.22931226 | AN57: 15.33391622 | AO57: 22.40839147 | AP57: 18.87115385 | AR57: 0 | AS57: 0 | BD57: 53 | BE57: 18.9 | BF57: 53 | BG57: 0.5097591429 | BH57: 0.4902408571 | BI57: 0.4902408571 | BJ57: -145.6009167 | BK57: 0.01200521306
A58: 0 | B58: 18 | C58: =IF(input!F8="","",input!F8) -> 18 | D58: " | E58: 18 | F58: ", | H58: 327664 | I58: 0.327664 | AE58: 54 | AF58: 54 | AG58: 18 | AH58: 23 | AI58: 16 | AJ58: 17.69207464 | AK58: 20.05023306 | AL58: 16.51299543 | AM58: 21.22931226 | AN58: 15.33391622 | AO58: 22.40839147 | AP58: 18.87115385 | AR58: 0 | AS58: 0 | BD58: 54 | BE58: 19 | BF58: 54 | BG58: 0.5435085771 | BH58: 0.4564914229 | BI58: 0.4902408571 | BJ58: -141.5148033 | BK58: 0.03602256317
A59: 0 | B59: 18.7 | C59: =IF(input!F9="","",input!F9) -> 18.7 | D59: " | E59: 18.7 | F59: ", | H59: 19489463 | I59: 19.489463 | AE59: 55 | AF59: 55 | AG59: 18.7 | AH59: 23 | AI59: 16 | AJ59: 17.69207464 | AK59: 20.05023306 | AL59: 16.51299543 | AM59: 21.22931226 | AN59: 15.33391622 | AO59: 22.40839147 | AP59: 18.87115385 | AR59: 0 | AS59: 0 | BD59: 55 | BE59: 19 | BF59: 55 | BG59: 0.5435085771 | BH59: 0.4564914229 | BI59: 0.5240603494 | BJ59: -136.8885462 | BK59: 0.0600607133
A60: 0 | B60: 20.3 | C60: =IF(input!F10="","",input!F10) -> 20.3 | D60: " | E60: 20.3 | F60: ", | H60: 294884 | I60: 0.294884 | AE60: 56 | AF60: 56 | AG60: 20.3 | AH60: 23 | AI60: 16 | AJ60: 17.69207464 | AK60: 20.05023306 | AL60: 16.51299543 | AM60: 21.22931226 | AN60: 15.33391622 | AO60: 22.40839147 | AP60: 18.87115385 | AR60: 0 | AS60: 0 | BD60: 56 | BE60: 19 | BF60: 56 | BG60: 0.5435085771 | BH60: 0.4564914229 | BI60: 0.5240603494 | BJ60: -139.4002626 | BK60: 0.08413362368
A61: 0 | B61: 18.7 | C61: =IF(input!F11="","",input!F11) -> 18.7 | D61: " | E61: 18.7 | F61: ", | H61: 19863491 | I61: 19.863491 | AE61: 57 | AF61: 57 | AG61: 18.7 | AH61: 23 | AI61: 16 | AJ61: 17.69207464 | AK61: 20.05023306 | AL61: 16.51299543 | AM61: 21.22931226 | AN61: 15.33391622 | AO61: 22.40839147 | AP61: 18.87115385 | AR61: 0 | AS61: 0 | BD61: 57 | BE61: 19 | BF61: 57 | BG61: 0.5435085771 | BH61: 0.4564914229 | BI61: 0.5240603494 | BJ61: -141.9119791 | BK61: 0.108255396
A62: 0 | B62: 18.8 | C62: =IF(input!F12="","",input!F12) -> 18.8 | D62: " | E62: 18.8 | F62: ", | H62: 237441 | I62: 0.237441 | AE62: 58 | AF62: 58 | AG62: 18.8 | AH62: 23 | AI62: 16 | AJ62: 17.69207464 | AK62: 20.05023306 | AL62: 16.51299543 | AM62: 21.22931226 | AN62: 15.33391622 | AO62: 22.40839147 | AP62: 18.87115385 | AR62: 0 | AS62: 0 | BD62: 58 | BE62: 19.1 | BF62: 58 | BG62: 0.5769468526 | BH62: 0.4230531474 | BI62: 0.5240603494 | BJ62: -137.5576591 | BK62: 0.132440332
A63: 0 | B63: 19.4 | C63: =IF(input!F13="","",input!F13) -> 19.4 | D63: " | E63: 19.4 | F63: ", | H63: 20382204 | I63: 20.382204 | AE63: 59 | AF63: 59 | AG63: 19.4 | AH63: 23 | AI63: 16 | AJ63: 17.69207464 | AK63: 20.05023306 | AL63: 16.51299543 | AM63: 21.22931226 | AN63: 15.33391622 | AO63: 22.40839147 | AP63: 18.87115385 | AR63: 0 | AS63: 0 | BD63: 59 | BE63: 19.1 | BF63: 59 | BG63: 0.5769468526 | BH63: 0.4230531474 | BI63: 0.5577072941 | BJ63: -132.6693588 | BK63: 0.1567029942
A64: 0 | B64: 18.5 | C64: =IF(input!F14="","",input!F14) -> 18.5 | D64: " | E64: 18.5 | F64: ", | H64: 148843 | I64: 0.148843 | Q64: 1 | R64: =Minimum -> 16.1 | S64: =R64+U64 -> 16.37 | T64: =(S64+R64)/2 -> 16.235 | U64: =Spannweite/AnzahlKlassenHistogramm -> 0.27 | V64: =FREQUENCY(xi,S64) -> 2 | W64: =$V64/Anzahl -> 0.01923076923 | X64: =V64 -> 2 | Y64: =X64/Anzahl -> 0.01923076923 | Z64: =Y64/U64 -> 0.07122507123 | AE64: 60 | AF64: 60 | AG64: 18.5 | AH64: 23 | AI64: 16 | AJ64: 17.69207464 | AK64: 20.05023306 | AL64: 16.51299543 | AM64: 21.22931226 | AN64: 15.33391622 | AO64: 22.40839147 | AP64: 18.87115385 | AR64: 0 | AS64: 0 | BD64: 60 | BE64: 19.1 | BF64: 60 | BG64: 0.5769468526 | BH64: 0.4230531474 | BI64: 0.5577072941 | BJ64: -134.9372111 | BK64: 0.1810582698
A65: 0 | B65: 18.6 | C65: =IF(input!F15="","",input!F15) -> 18.6 | D65: " | E65: 18.6 | F65: ", | H65: 20810566 | I65: 20.810566 | Q65: 2 | R65: =IF(AnzahlKlassenHistogramm<Q65,R64,R64+U65+0.00000001) -> 16.37000001 | S65: =R65+U65 -> 16.64000001 | T65: =(S65+R65)/2 -> 16.50500001 | U65: 0.27 | V65: 4 | W65: 0.03846153846 | X65: =V65-V64 -> 2 | Y65: 0.01923076923 | Z65: =Y65/U65 -> 0.07122507123 | AE65: 61 | AF65: 61 | AG65: 18.6 | AH65: 23 | AI65: 16 | AJ65: 17.69207464 | AK65: 20.05023306 | AL65: 16.51299543 | AM65: 21.22931226 | AN65: 15.33391622 | AO65: 22.40839147 | AP65: 18.87115385 | AR65: 0 | AS65: 0 | BD65: 61 | BE65: 19.1 | BF65: 61 | BG65: 0.5769468526 | BH65: 0.4230531474 | BI65: 0.5577072941 | BJ65: -137.2050633 | BK65: 0.2055214374
A66: 0 | B66: 19.6 | C66: =IF(input!F16="","",input!F16) -> 19.6 | D66: " | E66: 19.6 | F66: ", | H66: 87471 | I66: 0.087471 | Q66: 3 | R66: 16.64000002 | S66: =R66+U66 -> 16.91000002 | T66: =(S66+R66)/2 -> 16.77500002 | U66: 0.27 | V66: 7 | W66: 0.06730769231 | X66: =V66-V65 -> 3 | Y66: 0.02884615385 | Z66: 0.1068376068 | AE66: 62 | AF66: 62 | AG66: 19.6 | AH66: 23 | AI66: 16 | AJ66: 17.69207464 | AK66: 20.05023306 | AL66: 16.51299543 | AM66: 21.22931226 | AN66: 15.33391622 | AO66: 22.40839147 | AP66: 18.87115385 | AR66: 0 | AS66: 0 | BD66: 62 | BE66: 19.2 | BF66: 62 | BG66: 0.6098395289 | BH66: 0.3901604711 | BI66: 0.5577072941 | BJ66: -132.6530942 | BK66: 0.230108239
A67: 0 | B67: 18.5 | C67: =IF(input!F17="","",input!F17) -> 18.5 | D67: " | E67: 18.5 | F67: ", | H67: 21182106 | I67: 21.182106 | Q67: 4 | R67: 16.91000003 | S67: 17.18000003 | T67: 17.04500003 | U67: 0.27 | V67: 10 | W67: 0.09615384615 | X67: 3 | Y67: 0.02884615385 | Z67: 0.1068376068 | AE67: 63 | AF67: 63 | AG67: 18.5 | AH67: 23 | AI67: 16 | AJ67: 17.69207464 | AK67: 20.05023306 | AL67: 16.51299543 | AM67: 21.22931226 | AN67: 15.33391622 | AO67: 22.40839147 | AP67: 18.87115385 | AR67: 0 | AS67: 0 | BD67: 63 | BE67: 19.2 | BF67: 63 | BG67: 0.6098395289 | BH67: 0.3901604711 | BI67: 0.5909427889 | BJ67: -127.5744367 | BK67: 0.2548349569
A68: 0 | B68: 20 | C68: =IF(input!F18="","",input!F18) -> 20 | D68: " | E68: 20 | F68: ", | H68: 49568 | I68: 0.049568 | Q68: 5 | R68: 17.18000004 | S68: 17.45000004 | T68: 17.31500004 | U68: 0.27 | V68: 15 | W68: 0.1442307692 | X68: 5 | Y68: 0.04807692308 | Z68: 0.1780626781 | AE68: 64 | AF68: 64 | AG68: 20 | AH68: 23 | AI68: 16 | AJ68: 17.69207464 | AK68: 20.05023306 | AL68: 16.51299543 | AM68: 21.22931226 | AN68: 15.33391622 | AO68: 22.40839147 | AP68: 18.87115385 | AR68: 0 | AS68: 0 | BD68: 64 | BE68: 19.3 | BF68: 64 | BG68: 0.6419637431 | BH68: 0.3580362569 | BI68: 0.5909427889 | BJ68: -123.0959593 | BK68: 0.2797184963
A69: 0 | B69: 17.8 | C69: =IF(input!F19="","",input!F19) -> 17.8 | D69: " | E69: 17.8 | F69: ", | H69: 21614102 | I69: 21.614102 | Q69: 6 | R69: 17.45000005 | S69: 17.72000005 | T69: 17.58500005 | U69: 0.27 | V69: 20 | W69: 0.1923076923 | X69: 5 | Y69: 0.04807692308 | Z69: 0.1780626781 | AE69: 65 | AF69: =IF((Anzahl>AE69),AE69,Anzahl) -> 65 | AG69: 17.8 | AH69: =IF(OGW="",#N/A,IF(B69<>"",OGW,#N/A)) -> 23 | AI69: =IF(UGW="",#N/A,IF(B69<>"",UGW,#N/A)) -> 16 | AJ69: 17.69207464 | AK69: 20.05023306 | AL69: 16.51299543 | AM69: 21.22931226 | AN69: 15.33391622 | AO69: 22.40839147 | AP69: 18.87115385 | AR69: =IF(AND(B69<>"",B69<UGW),1,0) -> 0 | AS69: =IF(AND(B69<>"",B69>OGW),1,0) -> 0 | BD69: 65 | BE69: =IF(B69="",NA(),SMALL(xi,BF69)) -> 19.3 | BF69: 65 | BG69: =IF(B69="","",NORMSDIST((BE69-fxds)/Standardabweichung)) -> 0.6419637431 | BH69: 0.3580362569 | BI69: =IF(IF(B69="","",SMALL(BG,BF69))=0,0.0001,IF(B69="","",SMALL(BG,BF69))) -> 0.5909427889 | BJ69: -125.0344783 | BK69: =IF(B69="",NA(),NORMSINV((BF69-0.3)/(Anzahl+0.4))) -> 0.3047764768
A70: =IF(B70=C70,0,1) -> 0 | B70: 19.8 | C70: =IF(input!F20="","",input!F20) -> 19.8 | D70: " | E70: =SUBSTITUTE(C70,",",".") -> 19.8 | F70: ", | H70: 22604 | I70: 0.022604 | Q70: 7 | R70: 17.72000006 | S70: 17.99000006 | T70: 17.85500006 | U70: 0.27 | V70: 22 | W70: 0.2115384615 | X70: 2 | Y70: 0.01923076923 | Z70: 0.07122507123 | AE70: 66 | AF70: 66 | AG70: =IF(B70<>"",B70,#N/A) -> 19.8 | AH70: 23 | AI70: 16 | AJ70: =AJ69 -> 17.69207464 | AK70: 20.05023306 | AL70: 16.51299543 | AM70: 21.22931226 | AN70: 15.33391622 | AO70: 22.40839147 | AP70: 18.87115385 | AR70: 0 | AS70: 0 | BD70: 66 | BE70: 19.4 | BF70: 66 | BG70: 0.6731127195 | BH70: =IF(B70="","",1-BG70) -> 0.3268872805 | BI70: 0.6235367112 | BJ70: =IF(B70="","",(2*BF70-1)*(LN(BI70)+LN(BG70))) -> -113.7329046 | BK70: 0.3300273317
A71: 0 | B71: 16.6 | C71: =IF(input!F21="","",input!F21) -> 16.6 | D71: " | E71: 16.6 | F71: ", | H71: 22514782 | I71: 22.514782 | Q71: 8 | R71: 17.99000007 | S71: 18.26000007 | T71: 18.12500007 | U71: 0.27 | V71: 28 | W71: 0.2692307692 | X71: 6 | Y71: 0.05769230769 | Z71: 0.2136752137 | AE71: 67 | AF71: 67 | AG71: 16.6 | AH71: 23 | AI71: 16 | AJ71: 17.69207464 | AK71: 20.05023306 | AL71: 16.51299543 | AM71: 21.22931226 | AN71: 15.33391622 | AO71: 22.40839147 | AP71: 18.87115385 | AR71: 0 | AS71: 0 | BD71: 67 | BE71: 19.4 | BF71: =IF(B71="","",1+BF70) -> 67 | BG71: 0.6731127195 | BH71: 0.3268872805 | BI71: 0.6235367112 | BJ71: -115.4692849 | BK71: 0.3554904178
A72: 0 | B72: 19.4 | C72: =IF(input!F22="","",input!F22) -> 19.4 | D72: " | E72: 19.4 | F72: ", | H72: 2855 | I72: 0.002855 | Q72: 9 | R72: 18.26000008 | S72: 18.53000008 | T72: 18.39500008 | U72: 0.27 | V72: 39 | W72: 0.375 | X72: 11 | Y72: 0.1057692308 | Z72: 0.3917378917 | AE72: 68 | AF72: 68 | AG72: 19.4 | AH72: 23 | AI72: 16 | AJ72: 17.69207464 | AK72: 20.05023306 | AL72: 16.51299543 | AM72: 21.22931226 | AN72: 15.33391622 | AO72: 22.40839147 | AP72: 18.87115385 | AR72: 0 | AS72: 0 | BD72: 68 | BE72: 19.4 | BF72: 68 | BG72: 0.6731127195 | BH72: 0.3268872805 | BI72: 0.6235367112 | BJ72: -117.2056651 | BK72: 0.3811861383
A73: 0 | B73: 19.3 | C73: =IF(input!F23="","",input!F23) -> 19.3 | D73: " | E73: 19.3 | F73: ", | H73: 0 | I73: 0 | Q73: 10 | R73: 18.53000009 | S73: 18.80000009 | T73: 18.66500009 | U73: 0.27 | V73: 50 | W73: 0.4807692308 | X73: 11 | Y73: 0.1057692308 | Z73: 0.3917378917 | AE73: 69 | AF73: 69 | AG73: 19.3 | AH73: 23 | AI73: 16 | AJ73: 17.69207464 | AK73: 20.05023306 | AL73: 16.51299543 | AM73: 21.22931226 | AN73: 15.33391622 | AO73: 22.40839147 | AP73: 18.87115385 | AR73: 0 | AS73: 0 | BD73: 69 | BE73: 19.4 | BF73: 69 | BG73: 0.6731127195 | BH73: 0.3268872805 | BI73: 0.6235367112 | BJ73: -118.9420453 | BK73: 0.407136079
A74: 0 | B74: 20.1 | C74: =IF(input!F24="","",input!F24) -> 20.1 | D74: " | E74: 20.1 | F74: ", | Q74: 11 | R74: 18.8000001 | S74: 19.0700001 | T74: 18.9350001 | U74: 0.27 | V74: 57 | W74: 0.5480769231 | X74: 7 | Y74: 0.06730769231 | Z74: 0.2492877493 | AE74: 70 | AF74: 70 | AG74: 20.1 | AH74: 23 | AI74: 16 | AJ74: 17.69207464 | AK74: 20.05023306 | AL74: 16.51299543 | AM74: 21.22931226 | AN74: 15.33391622 | AO74: 22.40839147 | AP74: 18.87115385 | AR74: 0 | AS74: 0 | BD74: 70 | BE74: 19.5 | BF74: 70 | BG74: 0.7030997186 | BH74: 0.2969002814 | BI74: 0.6235367112 | BJ74: -114.6199819 | BK74: 0.4333631628
A75: 0 | B75: 20.5 | C75: =IF(input!F25="","",input!F25) -> 20.5 | D75: " | E75: 20.5 | F75: ", | Q75: 12 | R75: 19.07000011 | S75: 19.34000011 | T75: 19.20500011 | U75: 0.27 | V75: 65 | W75: 0.625 | X75: 8 | Y75: 0.07692307692 | Z75: 0.2849002849 | AE75: 71 | AF75: 71 | AG75: 20.5 | AH75: 23 | AI75: 16 | AJ75: 17.69207464 | AK75: 20.05023306 | AL75: 16.51299543 | AM75: 21.22931226 | AN75: 15.33391622 | AO75: 22.40839147 | AP75: 18.87115385 | AR75: 0 | AS75: 0 | BD75: 71 | BE75: 19.5 | BF75: 71 | BG75: 0.7030997186 | BH75: 0.2969002814 | BI75: 0.6552724831 | BJ75: -109.2694552 | BK75: 0.4598918231
A76: 0 | B76: 20 | C76: =IF(input!F26="","",input!F26) -> 20 | D76: " | E76: 20 | F76: ", | Q76: 13 | R76: 19.34000012 | S76: 19.61000012 | T76: 19.47500012 | U76: 0.27 | V76: 75 | W76: 0.7211538462 | X76: 10 | Y76: 0.09615384615 | Z76: 0.3561253561 | AE76: 72 | AF76: 72 | AG76: 20 | AH76: 23 | AI76: 16 | AJ76: 17.69207464 | AK76: 20.05023306 | AL76: 16.51299543 | AM76: 21.22931226 | AN76: 15.33391622 | AO76: 22.40839147 | AP76: 18.87115385 | AR76: 0 | AS76: 0 | BD76: 72 | BE76: 19.5 | BF76: 72 | BG76: 0.7030997186 | BH76: 0.2969002814 | BI76: 0.6552724831 | BJ76: -110.8193765 | BK76: 0.4867482021
A77: 0 | B77: 20.8 | C77: =IF(input!F27="","",input!F27) -> 20.8 | D77: " | E77: 20.8 | F77: ", | Q77: 14 | R77: 19.61000013 | S77: 19.88000013 | T77: 19.74500013 | U77: 0.27 | V77: 80 | W77: 0.7692307692 | X77: 5 | Y77: 0.04807692308 | Z77: 0.1780626781 | AE77: 73 | AF77: 73 | AG77: 20.8 | AH77: 23 | AI77: 16 | AJ77: 17.69207464 | AK77: 20.05023306 | AL77: 16.51299543 | AM77: 21.22931226 | AN77: 15.33391622 | AO77: 22.40839147 | AP77: 18.87115385 | AR77: 0 | AS77: 0 | BD77: 73 | BE77: 19.6 | BF77: 73 | BG77: 0.7317613033 | BH77: 0.2682386967 | BI77: 0.6552724831 | BJ77: -106.5757296 | BK77: 0.5139603769
A78: 0 | B78: 17.7 | C78: =IF(input!F28="","",input!F28) -> 17.7 | D78: " | E78: 17.7 | F78: ", | Q78: 15 | R78: 19.88000014 | S78: 20.15000014 | T78: 20.01500014 | U78: 0.27 | V78: 89 | W78: 0.8557692308 | X78: 9 | Y78: 0.08653846154 | Z78: 0.3205128205 | AE78: 74 | AF78: 74 | AG78: 17.7 | AH78: 23 | AI78: 16 | AJ78: 17.69207464 | AK78: 20.05023306 | AL78: 16.51299543 | AM78: 21.22931226 | AN78: 15.33391622 | AO78: 22.40839147 | AP78: 18.87115385 | AR78: 0 | AS78: 0 | BD78: 74 | BE78: 19.6 | BF78: 74 | BG78: 0.7317613033 | BH78: 0.2682386967 | BI78: 0.685951361 | BJ78: -101.319671 | BK78: 0.5415586189
A79: 0 | B79: 18.9 | C79: =IF(input!F29="","",input!F29) -> 18.9 | D79: " | E79: 18.9 | F79: ", | Q79: 16 | R79: 20.15000015 | S79: 20.42000015 | T79: 20.28500015 | U79: 0.27 | V79: 95 | W79: 0.9134615385 | X79: 6 | Y79: 0.05769230769 | Z79: 0.2136752137 | AE79: 75 | AF79: 75 | AG79: 18.9 | AH79: 23 | AI79: 16 | AJ79: 17.69207464 | AK79: 20.05023306 | AL79: 16.51299543 | AM79: 21.22931226 | AN79: 15.33391622 | AO79: 22.40839147 | AP79: 18.87115385 | AR79: 0 | AS79: 0 | BD79: 75 | BE79: 19.6 | BF79: 75 | BG79: 0.7317613033 | BH79: 0.2682386967 | BI79: 0.685951361 | BJ79: -102.6981699 | BK79: 0.5695756949
A80: 0 | B80: 18.8 | C80: =IF(input!F30="","",input!F30) -> 18.8 | D80: " | E80: 18.8 | F80: ", | Q80: 17 | R80: 20.42000016 | S80: 20.69000016 | T80: 20.55500016 | U80: 0.27 | V80: 100 | W80: 0.9615384615 | X80: 5 | Y80: 0.04807692308 | Z80: 0.1780626781 | AE80: 76 | AF80: 76 | AG80: 18.8 | AH80: 23 | AI80: 16 | AJ80: 17.69207464 | AK80: 20.05023306 | AL80: 16.51299543 | AM80: 21.22931226 | AN80: 15.33391622 | AO80: 22.40839147 | AP80: 18.87115385 | AR80: 0 | AS80: 0 | BD80: 76 | BE80: 19.7 | BF80: 76 | BG80: 0.7589598284 | BH80: 0.2410401716 | BI80: 0.685951361 | BJ80: -98.5660029 | BK80: 0.5980472154
A81: 0 | B81: 16.4 | C81: =IF(input!F31="","",input!F31) -> 16.4 | D81: " | E81: 16.4 | F81: ", | Q81: 18 | R81: 20.69000017 | S81: 20.96000017 | T81: 20.82500017 | U81: 0.27 | V81: 102 | W81: 0.9807692308 | X81: 2 | Y81: 0.01923076923 | Z81: 0.07122507123 | AE81: 77 | AF81: 77 | AG81: 16.4 | AH81: 23 | AI81: 16 | AJ81: 17.69207464 | AK81: 20.05023306 | AL81: 16.51299543 | AM81: 21.22931226 | AN81: 15.33391622 | AO81: 22.40839147 | AP81: 18.87115385 | AR81: 0 | AS81: 0 | BD81: 77 | BE81: 19.7 | BF81: 77 | BG81: 0.7589598284 | BH81: 0.2410401716 | BI81: 0.7434539443 | BJ81: -87.55499808 | BK81: 0.627012043
A82: 0 | B82: 18.5 | C82: =IF(input!F32="","",input!F32) -> 18.5 | D82: " | E82: 18.5 | F82: ", | Q82: 19 | R82: 20.96000018 | S82: 21.23000018 | T82: 21.09500018 | U82: 0.27 | V82: 103 | W82: 0.9903846154 | X82: 1 | Y82: 0.009615384615 | Z82: 0.03561253561 | AE82: 78 | AF82: 78 | AG82: 18.5 | AH82: 23 | AI82: 16 | AJ82: 17.69207464 | AK82: 20.05023306 | AL82: 16.51299543 | AM82: 21.22931226 | AN82: 15.33391622 | AO82: 22.40839147 | AP82: 18.87115385 | AR82: 0 | AS82: 0 | BD82: 78 | BE82: 19.7 | BF82: 78 | BG82: 0.7589598284 | BH82: 0.2410401716 | BI82: 0.7434539443 | BJ82: -88.69950786 | BK82: 0.6565127715
A83: 0 | B83: 19 | C83: =IF(input!F33="","",input!F33) -> 19 | D83: " | E83: 19 | F83: ", | Q83: 20 | R83: 21.23000019 | S83: 21.50000019 | T83: 21.36500019 | U83: 0.27 | V83: 104 | W83: 1 | X83: 1 | Y83: 0.009615384615 | Z83: 0.03561253561 | AE83: 79 | AF83: 79 | AG83: 19 | AH83: 23 | AI83: 16 | AJ83: 17.69207464 | AK83: 20.05023306 | AL83: 16.51299543 | AM83: 21.22931226 | AN83: 15.33391622 | AO83: 22.40839147 | AP83: 18.87115385 | AR83: 0 | AS83: 0 | BD83: 79 | BE83: 19.8 | BF83: 79 | BG83: 0.7845850997 | BH83: 0.2154149003 | BI83: 0.7434539443 | BJ83: -84.63064524 | BK83: 0.6865962936
A84: 0 | B84: 20.6 | C84: =IF(input!F34="","",input!F34) -> 20.6 | D84: " | E84: 20.6 | F84: ", | AE84: 80 | AF84: 80 | AG84: 20.6 | AH84: 23 | AI84: 16 | AJ84: 17.69207464 | AK84: 20.05023306 | AL84: 16.51299543 | AM84: 21.22931226 | AN84: 15.33391622 | AO84: 22.40839147 | AP84: 18.87115385 | AR84: 0 | AS84: 0 | BD84: 80 | BE84: 19.8 | BF84: 80 | BG84: 0.7845850997 | BH84: 0.2154149003 | BI84: 0.7699986833 | BJ84: -80.13070696 | BK84: 0.7173144767
A85: 0 | B85: 19.2 | C85: =IF(input!F35="","",input!F35) -> 19.2 | D85: " | E85: 19.2 | F85: ", | AE85: 81 | AF85: 81 | AG85: 19.2 | AH85: 23 | AI85: 16 | AJ85: 17.69207464 | AK85: 20.05023306 | AL85: 16.51299543 | AM85: 21.22931226 | AN85: 15.33391622 | AO85: 22.40839147 | AP85: 18.87115385 | AR85: 0 | AS85: 0 | BD85: 81 | BE85: 19.9 | BF85: 81 | BG85: 0.8085551835 | BH85: 0.1914448165 | BI85: 0.7699986833 | BJ85: -76.29352437 | BK85: 0.7487249731
A86: 0 | B86: 17.1 | C86: =IF(input!F36="","",input!F36) -> 17.1 | D86: " | E86: 17.1 | F86: ", | AE86: 82 | AF86: 82 | AG86: 17.1 | AH86: 23 | AI86: 16 | AJ86: =AJ85 -> 17.69207464 | AK86: 20.05023306 | AL86: 16.51299543 | AM86: 21.22931226 | AN86: 15.33391622 | AO86: 22.40839147 | AP86: 18.87115385 | AR86: 0 | AS86: 0 | BD86: 82 | BE86: 19.9 | BF86: 82 | BG86: 0.8085551835 | BH86: 0.1914448165 | BI86: 0.7699986833 | BJ86: -77.24127002 | BK86: 0.7808921994
A87: 0 | B87: 16.3 | C87: =IF(input!F37="","",input!F37) -> 16.3 | D87: " | E87: 16.3 | F87: ", | S87: =I39 -> 15.227525 | T87: =I40 -> 0.002855 | W87: =IF(OGW<>"",OGW,#N/A) -> 23 | X87: =MAX(Häufigkeitsdichte)*1.05 -> 0.4113247863 | AE87: 83 | AF87: 83 | AG87: 16.3 | AH87: 23 | AI87: 16 | AJ87: 17.69207464 | AK87: 20.05023306 | AL87: 16.51299543 | AM87: 21.22931226 | AN87: 15.33391622 | AO87: 22.40839147 | AP87: 18.87115385 | AR87: 0 | AS87: 0 | BD87: 83 | BE87: 19.9 | BF87: 83 | BG87: 0.8085551835 | BH87: 0.1914448165 | BI87: 0.7949320381 | BJ87: -72.93082546 | BK87: 0.8138885298
A88: 0 | B88: 17.2 | C88: =IF(input!F38="","",input!F38) -> 17.2 | D88: " | E88: 17.2 | F88: ", | S88: =I41 -> 16.128205 | T88: =I42 -> 0.022604 | W88: =IF(UGW<>"",UGW,#N/A) -> 16 | X88: 0.4113247863 | AE88: 84 | AF88: 84 | AG88: 17.2 | AH88: 23 | AI88: 16 | AJ88: 17.69207464 | AK88: 20.05023306 | AL88: 16.51299543 | AM88: 21.22931226 | AN88: 15.33391622 | AO88: 22.40839147 | AP88: 18.87115385 | AR88: 0 | AS88: 0 | BD88: 84 | BE88: 20 | BF88: 84 | BG88: 0.8308163848 | BH88: 0.1691836152 | BI88: 0.8181840713 | BJ88: -64.46440599 | BK88: 0.8477957612
A89: 0 | B89: 17.9 | C89: =IF(input!F39="","",input!F39) -> 17.9 | D89: " | E89: 17.9 | F89: ", | S89: =I43 -> 16.560201 | T89: =I44 -> 0.049568 | W89: =fxds+3*Standardabweichung -> 22.40839147 | X89: 0.4113247863 | AE89: 85 | AF89: 85 | AG89: 17.9 | AH89: 23 | AI89: 16 | AJ89: 17.69207464 | AK89: 20.05023306 | AL89: 16.51299543 | AM89: 21.22931226 | AN89: 15.33391622 | AO89: 22.40839147 | AP89: 18.87115385 | AR89: 0 | AS89: 0 | BD89: 85 | BE89: 20 | BF89: 85 | BG89: 0.8308163848 | BH89: 0.1691836152 | BI89: 0.8397128363 | BJ89: -60.84705958 | BK89: 0.8827069317
A90: 0 | B90: 19.1 | C90: =IF(input!F40="","",input!F40) -> 19.1 | D90: " | E90: 19.1 | F90: ", | S90: =I45 -> 16.931741 | T90: =I46 -> 0.087471 | W90: =fxds-3*Standardabweichung -> 15.33391622 | X90: 0.4113247863 | AE90: 86 | AF90: 86 | AG90: 19.1 | AH90: 23 | AI90: 16 | AJ90: 17.69207464 | AK90: 20.05023306 | AL90: 16.51299543 | AM90: 21.22931226 | AN90: 15.33391622 | AO90: 22.40839147 | AP90: 18.87115385 | AR90: 0 | AS90: 0 | BD90: 86 | BE90: 20 | BF90: 86 | BG90: 0.8308163848 | BH90: 0.1691836152 | BI90: 0.8397128363 | BJ90: -61.56714313 | BK90: 0.9187285975
A91: 0 | B91: 17.3 | C91: =IF(input!F41="","",input!F41) -> 17.3 | D91: " | E91: 17.3 | F91: ", | S91: =I47 -> 17.360103 | T91: =I48 -> 0.148843 | W91: =fxds -> 18.87115385 | X91: 0.4113247863 | AE91: 87 | AF91: 87 | AG91: 17.3 | AH91: 23 | AI91: 16 | AJ91: 17.69207464 | AK91: 20.05023306 | AL91: 16.51299543 | AM91: 21.22931226 | AN91: 15.33391622 | AO91: 22.40839147 | AP91: 18.87115385 | AR91: 0 | AS91: 0 | BD91: 87 | BE91: 20 | BF91: 87 | BG91: 0.8308163848 | BH91: 0.1691836152 | BI91: 0.8595032677 | BJ91: -58.25725139 | BK91: 0.9559837196
A92: 0 | B92: 19.4 | C92: =IF(input!F42="","",input!F42) -> 19.4 | D92: " | E92: 19.4 | F92: ", | S92: =I49 -> 17.878815 | T92: =I50 -> 0.237441 | W92: =Sollwert -> 20 | X92: 0.4113247863 | AE92: 88 | AF92: 88 | AG92: 19.4 | AH92: 23 | AI92: 16 | AJ92: 17.69207464 | AK92: 20.05023306 | AL92: 16.51299543 | AM92: 21.22931226 | AN92: 15.33391622 | AO92: 22.40839147 | AP92: 18.87115385 | AR92: 0 | AS92: 0 | BD92: 88 | BE92: 20.1 | BF92: 88 | BG92: 0.8513424451 | BH92: 0.1486575549 | BI92: 0.8775654144 | BJ92: -51.02030643 | BK92: 0.994615365
A93: 0 | B93: 18.3 | C93: =IF(input!F43="","",input!F43) -> 18.3 | D93: " | E93: 18.3 | F93: ", | S93: =I51 -> 18.252844 | T93: =I52 -> 0.294884 | AE93: 89 | AF93: 89 | AG93: 18.3 | AH93: 23 | AI93: 16 | AJ93: 17.69207464 | AK93: 20.05023306 | AL93: 16.51299543 | AM93: 21.22931226 | AN93: 15.33391622 | AO93: 22.40839147 | AP93: 18.87115385 | AR93: 0 | AS93: 0 | BD93: 89 | BE93: 20.1 | BF93: 89 | BG93: 0.8513424451 | BH93: 0.1486575549 | BI93: 0.8775654144 | BJ93: -51.60339565 | BK93: 1.034791521
A94: 0 | B94: 19.3 | C94: =IF(input!F44="","",input!F44) -> 19.3 | D94: " | E94: 19.3 | F94: ", | S94: =I53 -> 18.572437 | T94: =I54 -> 0.327664 | AE94: 90 | AF94: 90 | AG94: 19.3 | AH94: 23 | AI94: 16 | AJ94: 17.69207464 | AK94: 20.05023306 | AL94: 16.51299543 | AM94: 21.22931226 | AN94: 15.33391622 | AO94: 22.40839147 | AP94: 18.87115385 | AR94: 0 | AS94: 0 | BD94: 90 | BE94: 20.2 | BF94: 90 | BG94: 0.8701330418 | BH94: 0.1298669582 | BI94: 0.9086563182 | BJ94: -42.04665276 | BK94: 1.07671145
A95: 0 | B95: 17.2 | C95: =IF(input!F45="","",input!F45) -> 17.2 | D95: " | E95: 17.2 | F95: ", | S95: =I55 -> 18.871153 | T95: =I56 -> 0.33835 | AE95: 91 | AF95: 91 | AG95: 17.2 | AH95: 23 | AI95: 16 | AJ95: 17.69207464 | AK95: 20.05023306 | AL95: 16.51299543 | AM95: 21.22931226 | AN95: 15.33391622 | AO95: 22.40839147 | AP95: 18.87115385 | AR95: 0 | AS95: 0 | BD95: 91 | BE95: 20.3 | BF95: 91 | BG95: 0.8872116904 | BH95: 0.1127883096 | BI95: 0.9086563182 | BJ95: -38.99826188 | BK95: 1.120614225
A96: 0 | B96: 17.5 | C96: =IF(input!F46="","",input!F46) -> 17.5 | D96: " | E96: 17.5 | F96: ", | S96: =I57 -> 19.16987 | T96: =I58 -> 0.327664 | AE96: 92 | AF96: 92 | AG96: 17.5 | AH96: 23 | AI96: 16 | AJ96: 17.69207464 | AK96: 20.05023306 | AL96: 16.51299543 | AM96: 21.22931226 | AN96: 15.33391622 | AO96: 22.40839147 | AP96: 18.87115385 | AR96: 0 | AS96: 0 | BD96: 92 | BE96: 20.4 | BF96: 92 | BG96: 0.9026231721 | BH96: 0.09737682785 | BI96: 0.9086563182 | BJ96: -36.27763879 | BK96: 1.166790414
A97: 0 | B97: 19.6 | C97: =IF(input!F47="","",input!F47) -> 19.6 | D97: " | E97: 19.6 | F97: ", | S97: =I59 -> 19.489463 | T97: =I60 -> 0.294884 | AE97: 93 | AF97: 93 | AG97: 19.6 | AH97: 23 | AI97: 16 | AJ97: 17.69207464 | AK97: 20.05023306 | AL97: 16.51299543 | AM97: 21.22931226 | AN97: 15.33391622 | AO97: 22.40839147 | AP97: 18.87115385 | AR97: 0 | AS97: 0 | BD97: 93 | BE97: 20.4 | BF97: 93 | BG97: 0.9026231721 | BH97: 0.09737682785 | BI97: 0.9218079446 | BJ97: -34.0156724 | BK97: 1.215598434
A98: 0 | B98: 17.6 | C98: =IF(input!F48="","",input!F48) -> 17.6 | D98: " | E98: 17.6 | F98: ", | S98: =I61 -> 19.863491 | T98: =I62 -> 0.237441 | AE98: 94 | AF98: 94 | AG98: 17.6 | AH98: 23 | AI98: 16 | AJ98: 17.69207464 | AK98: 20.05023306 | AL98: 16.51299543 | AM98: 21.22931226 | AN98: 15.33391622 | AO98: 22.40839147 | AP98: 18.87115385 | AR98: 0 | AS98: 0 | BD98: 94 | BE98: 20.4 | BF98: 94 | BG98: 0.9026231721 | BH98: 0.09737682785 | BI98: 0.9218079446 | BJ98: -34.3834094 | BK98: 1.267488025
A99: 0 | B99: 20 | C99: =IF(input!F49="","",input!F49) -> 20 | D99: " | E99: 20 | F99: ", | S99: =I63 -> 20.382204 | T99: =I64 -> 0.148843 | AE99: 95 | AF99: 95 | AG99: 20 | AH99: 23 | AI99: 16 | AJ99: 17.69207464 | AK99: 20.05023306 | AL99: 16.51299543 | AM99: 21.22931226 | AN99: 15.33391622 | AO99: 22.40839147 | AP99: 18.87115385 | AR99: 0 | AS99: 0 | BD99: 95 | BE99: 20.4 | BF99: 95 | BG99: 0.9026231721 | BH99: 0.09737682785 | BI99: 0.9334708141 | BJ99: -32.37488745 | BK99: 1.323034952
A100: 0 | B100: 19.9 | C100: =IF(input!F50="","",input!F50) -> 19.9 | D100: " | E100: 19.9 | F100: ", | S100: =I65 -> 20.810566 | T100: =I66 -> 0.087471 | AE100: 96 | AF100: 96 | AG100: 19.9 | AH100: 23 | AI100: 16 | AJ100: 17.69207464 | AK100: 20.05023306 | AL100: 16.51299543 | AM100: 21.22931226 | AN100: 15.33391622 | AO100: 22.40839147 | AP100: 18.87115385 | AR100: 0 | AS100: 0 | BD100: 96 | BE100: 20.5 | BF100: 96 | BG100: 0.9164306149 | BH100: 0.08356938508 | BI100: 0.9334708141 | BJ100: -29.81787001 | BK100: 1.382994127
A101: 0 | B101: 16.9 | C101: =IF(input!F51="","",input!F51) -> 16.9 | D101: " | E101: 16.9 | F101: ", | S101: =I67 -> 21.182106 | T101: =I68 -> 0.049568 | AE101: 97 | AF101: =IF((Anzahl>AE101),AE101,Anzahl) -> 97 | AG101: 16.9 | AH101: =IF(OGW="",#N/A,IF(B101<>"",OGW,#N/A)) -> 23 | AI101: =IF(UGW="",#N/A,IF(B101<>"",UGW,#N/A)) -> 16 | AJ101: 17.69207464 | AK101: 20.05023306 | AL101: 16.51299543 | AM101: 21.22931226 | AN101: 15.33391622 | AO101: 22.40839147 | AP101: 18.87115385 | AR101: =IF(AND(B101<>"",B101<UGW),1,0) -> 0 | AS101: =IF(AND(B101<>"",B101>OGW),1,0) -> 0 | BD101: 97 | BE101: =IF(B101="",NA(),SMALL(xi,BF101)) -> 20.5 | BF101: 97 | BG101: =IF(B101="","",NORMSDIST((BE101-fxds)/Standardabweichung)) -> 0.9164306149 | BH101: 0.08356938508 | BI101: =IF(IF(B101="","",SMALL(BG,BF101))=0,0.0001,IF(B101="","",SMALL(BG,BF101))) -> 0.9334708141 | BJ101: -30.13009901 | BK101: =IF(B101="",NA(),NORMSINV((BF101-0.3)/(Anzahl+0.4))) -> 1.448384388
A102: 0 | B102: 19.5 | C102: =IF(input!F52="","",input!F52) -> 19.5 | D102: " | E102: 19.5 | F102: ", | S102: =I69 -> 21.614102 | T102: =I70 -> 0.022604 | AE102: 98 | AF102: 98 | AG102: 19.5 | AH102: 23 | AI102: 16 | AJ102: =AJ101 -> 17.69207464 | AK102: 20.05023306 | AL102: 16.51299543 | AM102: 21.22931226 | AN102: 15.33391622 | AO102: 22.40839147 | AP102: 18.87115385 | AR102: 0 | AS102: 0 | BD102: 98 | BE102: 20.5 | BF102: 98 | BG102: 0.9164306149 | BH102: 0.08356938508 | BI102: 0.9527155422 | BJ102: -26.46302641 | BK102: 1.52063089
A103: 0 | B103: 20.4 | C103: =IF(input!F53="","",input!F53) -> 20.4 | D103: " | E103: 20.4 | F103: ", | S103: =I71 -> 22.514782 | T103: =I72 -> 0.002855 | AE103: 99 | AF103: 99 | AG103: 20.4 | AH103: 23 | AI103: 16 | AJ103: 17.69207464 | AK103: 20.05023306 | AL103: 16.51299543 | AM103: 21.22931226 | AN103: 15.33391622 | AO103: 22.40839147 | AP103: 18.87115385 | AR103: 0 | AS103: 0 | BD103: 99 | BE103: 20.6 | BF103: 99 | BG103: 0.9287123597 | BH103: 0.07128764025 | BI103: 0.9527155422 | BJ103: -24.11183829 | BK103: 1.601820076
A104: 0 | B104: 19.1 | C104: =IF(input!F54="","",input!F54) -> 19.1 | D104: " | E104: 19.1 | F104: ", | AE104: 100 | AF104: 100 | AG104: 19.1 | AH104: 23 | AI104: 16 | AJ104: 17.69207464 | AK104: 20.05023306 | AL104: 16.51299543 | AM104: 21.22931226 | AN104: 15.33391622 | AO104: 22.40839147 | AP104: 18.87115385 | AR104: 0 | AS104: 0 | BD104: 100 | BE104: 20.6 | BF104: 100 | BG104: 0.9287123597 | BH104: 0.07128764025 | BI104: 0.9605057861 | BJ104: -22.7360454 | BK104: 1.695195638
A105: 0 | B105: 16.9 | C105: =IF(input!I5="","",input!I5) -> 16.9 | D105: " | E105: 16.9 | F105: ", | AE105: 101 | AF105: 101 | AG105: 16.9 | AH105: 23 | AI105: 16 | AJ105: 17.69207464 | AK105: 20.05023306 | AL105: 16.51299543 | AM105: 21.22931226 | AN105: 15.33391622 | AO105: 22.40839147 | AP105: 18.87115385 | AR105: 0 | AS105: 0 | BD105: 101 | BE105: 20.8 | BF105: 101 | BG105: 0.9490688955 | BH105: 0.05093110449 | BI105: 0.9729609043 | BJ105: -16.01673789 | BK105: 1.806237651
A106: 0 | B106: 19.5 | C106: =IF(input!I6="","",input!I6) -> 19.5 | D106: " | E106: 19.5 | F106: ", | AE106: 102 | AF106: 102 | AG106: 19.5 | AH106: 23 | AI106: 16 | AJ106: 17.69207464 | AK106: 20.05023306 | AL106: 16.51299543 | AM106: 21.22931226 | AN106: 15.33391622 | AO106: 22.40839147 | AP106: 18.87115385 | AR106: 0 | AS106: 0 | BD106: 102 | BE106: 20.9 | BF106: 102 | BG106: 0.9573477127 | BH106: 0.04265228726 | BI106: 0.9819515235 | BJ106: -12.54579671 | BK106: 1.945422591
A107: 0 | B107: 20.4 | C107: =IF(input!I7="","",input!I7) -> 20.4 | D107: " | E107: 20.4 | F107: ", | AE107: 103 | AF107: 103 | AG107: 20.4 | AH107: 23 | AI107: 16 | AJ107: 17.69207464 | AK107: 20.05023306 | AL107: 16.51299543 | AM107: 21.22931226 | AN107: 15.33391622 | AO107: 22.40839147 | AP107: 18.87115385 | AR107: 0 | AS107: 0 | BD107: 103 | BE107: 21 | BF107: 103 | BG107: 0.9645029981 | BH107: 0.03549700189 | BI107: 0.9853951788 | BJ107: -10.42524623 | BK107: 2.137380578
A108: 0 | B108: 19.1 | C108: =IF(input!I8="","",input!I8) -> 19.1 | D108: " | E108: 19.1 | F108: ", | AE108: 104 | AF108: 104 | AG108: 19.1 | AH108: 23 | AI108: 16 | AJ108: 17.69207464 | AK108: 20.05023306 | AL108: 16.51299543 | AM108: 21.22931226 | AN108: 15.33391622 | AO108: 22.40839147 | AP108: 18.87115385 | AR108: 0 | AS108: 0 | BD108: 104 | BE108: 21.5 | BF108: 104 | BG108: 0.9871121821 | BH108: 0.01288781792 | BI108: 0.9906200874 | BJ108: -4.635923847 | BK108: 2.472692113
A109: 0 | C109: =IF(input!I9="","",input!I9) ->  | D109: " | F109: ", | AE109: 105 | AF109: 104 | AJ109: 17.69207464 | AK109: 20.05023306 | AL109: 16.51299543 | AM109: 21.22931226 | AN109: 15.33391622 | AO109: 22.40839147 | AP109: 18.87115385 | AR109: 0 | AS109: 0 | BD109: 105
A110: 0 | C110: =IF(input!I10="","",input!I10) ->  | D110: " | F110: ", | AE110: 106 | AF110: 104 | AJ110: 17.69207464 | AK110: 20.05023306 | AL110: 16.51299543 | AM110: 21.22931226 | AN110: 15.33391622 | AO110: 22.40839147 | AP110: 18.87115385 | AR110: 0 | AS110: 0 | BD110: 106
A111: 0 | C111: =IF(input!I11="","",input!I11) ->  | D111: " | F111: ", | AE111: 107 | AF111: 104 | AJ111: 17.69207464 | AK111: 20.05023306 | AL111: 16.51299543 | AM111: 21.22931226 | AN111: 15.33391622 | AO111: 22.40839147 | AP111: 18.87115385 | AR111: 0 | AS111: 0 | BD111: 107
A112: 0 | C112: =IF(input!I12="","",input!I12) ->  | D112: " | F112: ", | AE112: 108 | AF112: 104 | AJ112: 17.69207464 | AK112: 20.05023306 | AL112: 16.51299543 | AM112: 21.22931226 | AN112: 15.33391622 | AO112: 22.40839147 | AP112: 18.87115385 | AR112: 0 | AS112: 0 | BD112: 108
A113: 0 | C113: =IF(input!I13="","",input!I13) ->  | D113: " | F113: ", | AE113: 109 | AF113: 104 | AJ113: 17.69207464 | AK113: 20.05023306 | AL113: 16.51299543 | AM113: 21.22931226 | AN113: 15.33391622 | AO113: 22.40839147 | AP113: 18.87115385 | AR113: 0 | AS113: 0 | BD113: 109
A114: 0 | C114: =IF(input!I14="","",input!I14) ->  | D114: " | F114: ", | AE114: 110 | AF114: 104 | AJ114: 17.69207464 | AK114: 20.05023306 | AL114: 16.51299543 | AM114: 21.22931226 | AN114: 15.33391622 | AO114: 22.40839147 | AP114: 18.87115385 | AR114: 0 | AS114: 0 | BD114: 110
A115: 0 | C115: =IF(input!I15="","",input!I15) ->  | D115: " | F115: ", | AE115: 111 | AF115: 104 | AJ115: 17.69207464 | AK115: 20.05023306 | AL115: 16.51299543 | AM115: 21.22931226 | AN115: 15.33391622 | AO115: 22.40839147 | AP115: 18.87115385 | AR115: 0 | AS115: 0 | BD115: 111
A116: 0 | C116: =IF(input!I16="","",input!I16) ->  | D116: " | F116: ", | AE116: 112 | AF116: 104 | AJ116: 17.69207464 | AK116: 20.05023306 | AL116: 16.51299543 | AM116: 21.22931226 | AN116: 15.33391622 | AO116: 22.40839147 | AP116: 18.87115385 | AR116: 0 | AS116: 0 | BD116: 112
A117: 0 | C117: =IF(input!I17="","",input!I17) ->  | D117: " | F117: ", | AE117: 113 | AF117: 104 | AJ117: 17.69207464 | AK117: 20.05023306 | AL117: 16.51299543 | AM117: 21.22931226 | AN117: 15.33391622 | AO117: 22.40839147 | AP117: 18.87115385 | AR117: 0 | AS117: 0 | BD117: 113
A118: 0 | C118: =IF(input!I18="","",input!I18) ->  | D118: " | F118: ", | AE118: 114 | AF118: 104 | AJ118: =AJ117 -> 17.69207464 | AK118: 20.05023306 | AL118: 16.51299543 | AM118: 21.22931226 | AN118: 15.33391622 | AO118: 22.40839147 | AP118: 18.87115385 | AR118: 0 | AS118: 0 | BD118: 114
A119: 0 | C119: =IF(input!I19="","",input!I19) ->  | D119: " | F119: ", | AE119: 115 | AF119: 104 | AJ119: 17.69207464 | AK119: 20.05023306 | AL119: 16.51299543 | AM119: 21.22931226 | AN119: 15.33391622 | AO119: 22.40839147 | AP119: 18.87115385 | AR119: 0 | AS119: 0 | BD119: 115
A120: 0 | C120: =IF(input!I20="","",input!I20) ->  | D120: " | F120: ", | AE120: 116 | AF120: 104 | AJ120: 17.69207464 | AK120: 20.05023306 | AL120: 16.51299543 | AM120: 21.22931226 | AN120: 15.33391622 | AO120: 22.40839147 | AP120: 18.87115385 | AR120: 0 | AS120: 0 | BD120: 116
A121: 0 | C121: =IF(input!I21="","",input!I21) ->  | D121: " | F121: ", | AE121: 117 | AF121: 104 | AJ121: 17.69207464 | AK121: 20.05023306 | AL121: 16.51299543 | AM121: 21.22931226 | AN121: 15.33391622 | AO121: 22.40839147 | AP121: 18.87115385 | AR121: 0 | AS121: 0 | BD121: 117
A122: 0 | C122: =IF(input!I22="","",input!I22) ->  | D122: " | F122: ", | AE122: 118 | AF122: 104 | AJ122: 17.69207464 | AK122: 20.05023306 | AL122: 16.51299543 | AM122: 21.22931226 | AN122: 15.33391622 | AO122: 22.40839147 | AP122: 18.87115385 | AR122: 0 | AS122: 0 | BD122: 118
A123: 0 | C123: =IF(input!I23="","",input!I23) ->  | D123: " | F123: ", | AE123: 119 | AF123: 104 | AJ123: 17.69207464 | AK123: 20.05023306 | AL123: 16.51299543 | AM123: 21.22931226 | AN123: 15.33391622 | AO123: 22.40839147 | AP123: 18.87115385 | AR123: 0 | AS123: 0 | BD123: 119
A124: 0 | C124: =IF(input!I24="","",input!I24) ->  | D124: " | F124: ", | AE124: 120 | AF124: 104 | AJ124: 17.69207464 | AK124: 20.05023306 | AL124: 16.51299543 | AM124: 21.22931226 | AN124: 15.33391622 | AO124: 22.40839147 | AP124: 18.87115385 | AR124: 0 | AS124: 0 | BD124: 120
A125: 0 | C125: =IF(input!I25="","",input!I25) ->  | D125: " | F125: ", | AE125: 121 | AF125: 104 | AJ125: 17.69207464 | AK125: 20.05023306 | AL125: 16.51299543 | AM125: 21.22931226 | AN125: 15.33391622 | AO125: 22.40839147 | AP125: 18.87115385 | AR125: 0 | AS125: 0 | BD125: 121
A126: 0 | C126: =IF(input!I26="","",input!I26) ->  | D126: " | F126: ", | AE126: 122 | AF126: 104 | AJ126: 17.69207464 | AK126: 20.05023306 | AL126: 16.51299543 | AM126: 21.22931226 | AN126: 15.33391622 | AO126: 22.40839147 | AP126: 18.87115385 | AR126: 0 | AS126: 0 | BD126: 122
A127: 0 | C127: =IF(input!I27="","",input!I27) ->  | D127: " | F127: ", | AE127: 123 | AF127: 104 | AJ127: 17.69207464 | AK127: 20.05023306 | AL127: 16.51299543 | AM127: 21.22931226 | AN127: 15.33391622 | AO127: 22.40839147 | AP127: 18.87115385 | AR127: 0 | AS127: 0 | BD127: 123
A128: 0 | C128: =IF(input!I28="","",input!I28) ->  | D128: " | F128: ", | AE128: 124 | AF128: 104 | AJ128: 17.69207464 | AK128: 20.05023306 | AL128: 16.51299543 | AM128: 21.22931226 | AN128: 15.33391622 | AO128: 22.40839147 | AP128: 18.87115385 | AR128: 0 | AS128: 0 | BD128: 124
A129: 0 | C129: =IF(input!I29="","",input!I29) ->  | D129: " | F129: ", | AE129: 125 | AF129: 104 | AJ129: 17.69207464 | AK129: 20.05023306 | AL129: 16.51299543 | AM129: 21.22931226 | AN129: 15.33391622 | AO129: 22.40839147 | AP129: 18.87115385 | AR129: 0 | AS129: 0 | BD129: 125
A130: 0 | C130: =IF(input!I30="","",input!I30) ->  | D130: " | F130: ", | AE130: 126 | AF130: 104 | AJ130: 17.69207464 | AK130: 20.05023306 | AL130: 16.51299543 | AM130: 21.22931226 | AN130: 15.33391622 | AO130: 22.40839147 | AP130: 18.87115385 | AR130: 0 | AS130: 0 | BD130: 126
A131: 0 | C131: =IF(input!I31="","",input!I31) ->  | D131: " | F131: ", | AE131: 127 | AF131: 104 | AJ131: 17.69207464 | AK131: 20.05023306 | AL131: 16.51299543 | AM131: 21.22931226 | AN131: 15.33391622 | AO131: 22.40839147 | AP131: 18.87115385 | AR131: 0 | AS131: 0 | BD131: 127
A132: 0 | C132: =IF(input!I32="","",input!I32) ->  | D132: " | F132: ", | AE132: 128 | AF132: 104 | AJ132: 17.69207464 | AK132: 20.05023306 | AL132: 16.51299543 | AM132: 21.22931226 | AN132: 15.33391622 | AO132: 22.40839147 | AP132: 18.87115385 | AR132: 0 | AS132: 0 | BD132: 128
A133: 0 | C133: =IF(input!I33="","",input!I33) ->  | D133: " | F133: ", | AE133: 129 | AF133: =IF((Anzahl>AE133),AE133,Anzahl) -> 104 | AH133: =IF(OGW="",#N/A,IF(B133<>"",OGW,#N/A)) ->  | AI133: =IF(UGW="",#N/A,IF(B133<>"",UGW,#N/A)) ->  | AJ133: 17.69207464 | AK133: 20.05023306 | AL133: 16.51299543 | AM133: 21.22931226 | AN133: 15.33391622 | AO133: 22.40839147 | AP133: 18.87115385 | AR133: =IF(AND(B133<>"",B133<UGW),1,0) -> 0 | AS133: =IF(AND(B133<>"",B133>OGW),1,0) -> 0 | BD133: 129 | BE133: =IF(B133="",NA(),SMALL(xi,BF133)) ->  | BG133: =IF(B133="","",NORMSDIST((BE133-fxds)/Standardabweichung)) ->  | BI133: =IF(IF(B133="","",SMALL(BG,BF133))=0,0.0001,IF(B133="","",SMALL(BG,BF133))) ->  | BK133: =IF(B133="",NA(),NORMSINV((BF133-0.3)/(Anzahl+0.4))) -> 
A134: =IF(B134=C134,0,1) -> 0 | C134: =IF(input!I34="","",input!I34) ->  | D134: " | E134: =SUBSTITUTE(C134,",",".") ->  | F134: ", | AE134: 130 | AF134: 104 | AG134: =IF(B134<>"",B134,#N/A) ->  | AJ134: =AJ133 -> 17.69207464 | AK134: 20.05023306 | AL134: 16.51299543 | AM134: 21.22931226 | AN134: 15.33391622 | AO134: 22.40839147 | AP134: 18.87115385 | AR134: 0 | AS134: 0 | BD134: 130 | BH134: =IF(B134="","",1-BG134) ->  | BJ134: =IF(B134="","",(2*BF134-1)*(LN(BI134)+LN(BG134))) -> 
A135: 0 | C135: =IF(input!I35="","",input!I35) ->  | D135: " | F135: ", | AE135: 131 | AF135: 104 | AJ135: 17.69207464 | AK135: 20.05023306 | AL135: 16.51299543 | AM135: 21.22931226 | AN135: 15.33391622 | AO135: 22.40839147 | AP135: 18.87115385 | AR135: 0 | AS135: 0 | BD135: 131 | BF135: =IF(B135="","",1+BF134) -> 
A136: 0 | C136: =IF(input!I36="","",input!I36) ->  | D136: " | F136: ", | AE136: 132 | AF136: 104 | AJ136: 17.69207464 | AK136: 20.05023306 | AL136: 16.51299543 | AM136: 21.22931226 | AN136: 15.33391622 | AO136: 22.40839147 | AP136: 18.87115385 | AR136: 0 | AS136: 0 | BD136: 132
A137: 0 | C137: =IF(input!I37="","",input!I37) ->  | D137: " | F137: ", | AE137: 133 | AF137: 104 | AJ137: 17.69207464 | AK137: 20.05023306 | AL137: 16.51299543 | AM137: 21.22931226 | AN137: 15.33391622 | AO137: 22.40839147 | AP137: 18.87115385 | AR137: 0 | AS137: 0 | BD137: 133
A138: 0 | C138: =IF(input!I38="","",input!I38) ->  | D138: " | F138: ", | AE138: 134 | AF138: 104 | AJ138: 17.69207464 | AK138: 20.05023306 | AL138: 16.51299543 | AM138: 21.22931226 | AN138: 15.33391622 | AO138: 22.40839147 | AP138: 18.87115385 | AR138: 0 | AS138: 0 | BD138: 134
A139: 0 | C139: =IF(input!I39="","",input!I39) ->  | D139: " | F139: ", | AE139: 135 | AF139: 104 | AJ139: 17.69207464 | AK139: 20.05023306 | AL139: 16.51299543 | AM139: 21.22931226 | AN139: 15.33391622 | AO139: 22.40839147 | AP139: 18.87115385 | AR139: 0 | AS139: 0 | BD139: 135
A140: 0 | C140: =IF(input!I40="","",input!I40) ->  | D140: " | F140: ", | AE140: 136 | AF140: 104 | AJ140: 17.69207464 | AK140: 20.05023306 | AL140: 16.51299543 | AM140: 21.22931226 | AN140: 15.33391622 | AO140: 22.40839147 | AP140: 18.87115385 | AR140: 0 | AS140: 0 | BD140: 136
A141: 0 | C141: =IF(input!I41="","",input!I41) ->  | D141: " | F141: ", | AE141: 137 | AF141: 104 | AJ141: 17.69207464 | AK141: 20.05023306 | AL141: 16.51299543 | AM141: 21.22931226 | AN141: 15.33391622 | AO141: 22.40839147 | AP141: 18.87115385 | AR141: 0 | AS141: 0 | BD141: 137
A142: 0 | C142: =IF(input!I42="","",input!I42) ->  | D142: " | F142: ", | AE142: 138 | AF142: 104 | AJ142: 17.69207464 | AK142: 20.05023306 | AL142: 16.51299543 | AM142: 21.22931226 | AN142: 15.33391622 | AO142: 22.40839147 | AP142: 18.87115385 | AR142: 0 | AS142: 0 | BD142: 138
A143: 0 | C143: =IF(input!I43="","",input!I43) ->  | D143: " | F143: ", | AE143: 139 | AF143: 104 | AJ143: 17.69207464 | AK143: 20.05023306 | AL143: 16.51299543 | AM143: 21.22931226 | AN143: 15.33391622 | AO143: 22.40839147 | AP143: 18.87115385 | AR143: 0 | AS143: 0 | BD143: 139
A144: 0 | C144: =IF(input!I44="","",input!I44) ->  | D144: " | F144: ", | AE144: 140 | AF144: 104 | AJ144: 17.69207464 | AK144: 20.05023306 | AL144: 16.51299543 | AM144: 21.22931226 | AN144: 15.33391622 | AO144: 22.40839147 | AP144: 18.87115385 | AR144: 0 | AS144: 0 | BD144: 140
A145: 0 | C145: =IF(input!I45="","",input!I45) ->  | D145: " | F145: ", | AE145: 141 | AF145: 104 | AJ145: 17.69207464 | AK145: 20.05023306 | AL145: 16.51299543 | AM145: 21.22931226 | AN145: 15.33391622 | AO145: 22.40839147 | AP145: 18.87115385 | AR145: 0 | AS145: 0 | BD145: 141
A146: 0 | C146: =IF(input!I46="","",input!I46) ->  | D146: " | F146: ", | AE146: 142 | AF146: 104 | AJ146: 17.69207464 | AK146: 20.05023306 | AL146: 16.51299543 | AM146: 21.22931226 | AN146: 15.33391622 | AO146: 22.40839147 | AP146: 18.87115385 | AR146: 0 | AS146: 0 | BD146: 142
A147: 0 | C147: =IF(input!I47="","",input!I47) ->  | D147: " | F147: ", | AE147: 143 | AF147: 104 | AJ147: 17.69207464 | AK147: 20.05023306 | AL147: 16.51299543 | AM147: 21.22931226 | AN147: 15.33391622 | AO147: 22.40839147 | AP147: 18.87115385 | AR147: 0 | AS147: 0 | BD147: 143
A148: 0 | C148: =IF(input!I48="","",input!I48) ->  | D148: " | F148: ", | AE148: 144 | AF148: 104 | AJ148: 17.69207464 | AK148: 20.05023306 | AL148: 16.51299543 | AM148: 21.22931226 | AN148: 15.33391622 | AO148: 22.40839147 | AP148: 18.87115385 | AR148: 0 | AS148: 0 | BD148: 144
A149: 0 | C149: =IF(input!I49="","",input!I49) ->  | D149: " | F149: ", | AE149: 145 | AF149: 104 | AJ149: 17.69207464 | AK149: 20.05023306 | AL149: 16.51299543 | AM149: 21.22931226 | AN149: 15.33391622 | AO149: 22.40839147 | AP149: 18.87115385 | AR149: 0 | AS149: 0 | BD149: 145
A150: 0 | C150: =IF(input!I50="","",input!I50) ->  | D150: " | F150: ", | AE150: 146 | AF150: 104 | AJ150: =AJ149 -> 17.69207464 | AK150: 20.05023306 | AL150: 16.51299543 | AM150: 21.22931226 | AN150: 15.33391622 | AO150: 22.40839147 | AP150: 18.87115385 | AR150: 0 | AS150: 0 | BD150: 146
A151: 0 | C151: =IF(input!I51="","",input!I51) ->  | D151: " | F151: ", | AE151: 147 | AF151: 104 | AJ151: 17.69207464 | AK151: 20.05023306 | AL151: 16.51299543 | AM151: 21.22931226 | AN151: 15.33391622 | AO151: 22.40839147 | AP151: 18.87115385 | AR151: 0 | AS151: 0 | BD151: 147
A152: 0 | C152: =IF(input!I52="","",input!I52) ->  | D152: " | F152: ", | AE152: 148 | AF152: 104 | AJ152: 17.69207464 | AK152: 20.05023306 | AL152: 16.51299543 | AM152: 21.22931226 | AN152: 15.33391622 | AO152: 22.40839147 | AP152: 18.87115385 | AR152: 0 | AS152: 0 | BD152: 148
A153: 0 | C153: =IF(input!I53="","",input!I53) ->  | D153: " | F153: ", | AE153: 149 | AF153: 104 | AJ153: 17.69207464 | AK153: 20.05023306 | AL153: 16.51299543 | AM153: 21.22931226 | AN153: 15.33391622 | AO153: 22.40839147 | AP153: 18.87115385 | AR153: 0 | AS153: 0 | BD153: 149
A154: 0 | C154: =IF(input!I54="","",input!I54) ->  | D154: " | F154: ", | AE154: 150 | AF154: 104 | AJ154: 17.69207464 | AK154: 20.05023306 | AL154: 16.51299543 | AM154: 21.22931226 | AN154: 15.33391622 | AO154: 22.40839147 | AP154: 18.87115385 | AR154: 0 | AS154: 0 | BD154: 150
A155: 0 | C155: =IF(input!L5="","",input!L5) ->  | D155: " | F155: ", | AE155: 151 | AF155: 104 | AJ155: 17.69207464 | AK155: 20.05023306 | AL155: 16.51299543 | AM155: 21.22931226 | AN155: 15.33391622 | AO155: 22.40839147 | AP155: 18.87115385 | AR155: 0 | AS155: 0 | BD155: 151
A156: 0 | C156: =IF(input!L6="","",input!L6) ->  | D156: " | F156: ", | AE156: 152 | AF156: 104 | AJ156: 17.69207464 | AK156: 20.05023306 | AL156: 16.51299543 | AM156: 21.22931226 | AN156: 15.33391622 | AO156: 22.40839147 | AP156: 18.87115385 | AR156: 0 | AS156: 0 | BD156: 152
A157: 0 | C157: =IF(input!L7="","",input!L7) ->  | D157: " | F157: ", | AE157: 153 | AF157: 104 | AJ157: 17.69207464 | AK157: 20.05023306 | AL157: 16.51299543 | AM157: 21.22931226 | AN157: 15.33391622 | AO157: 22.40839147 | AP157: 18.87115385 | AR157: 0 | AS157: 0 | BD157: 153
A158: 0 | C158: =IF(input!L8="","",input!L8) ->  | D158: " | F158: ", | AE158: 154 | AF158: 104 | AJ158: 17.69207464 | AK158: 20.05023306 | AL158: 16.51299543 | AM158: 21.22931226 | AN158: 15.33391622 | AO158: 22.40839147 | AP158: 18.87115385 | AR158: 0 | AS158: 0 | BD158: 154
A159: 0 | C159: =IF(input!L9="","",input!L9) ->  | D159: " | F159: ", | AE159: 155 | AF159: 104 | AJ159: 17.69207464 | AK159: 20.05023306 | AL159: 16.51299543 | AM159: 21.22931226 | AN159: 15.33391622 | AO159: 22.40839147 | AP159: 18.87115385 | AR159: 0 | AS159: 0 | BD159: 155
A160: 0 | C160: =IF(input!L10="","",input!L10) ->  | D160: " | F160: ", | AE160: 156 | AF160: 104 | AJ160: 17.69207464 | AK160: 20.05023306 | AL160: 16.51299543 | AM160: 21.22931226 | AN160: 15.33391622 | AO160: 22.40839147 | AP160: 18.87115385 | AR160: 0 | AS160: 0 | BD160: 156
A161: 0 | C161: =IF(input!L11="","",input!L11) ->  | D161: " | F161: ", | AE161: 157 | AF161: 104 | AJ161: 17.69207464 | AK161: 20.05023306 | AL161: 16.51299543 | AM161: 21.22931226 | AN161: 15.33391622 | AO161: 22.40839147 | AP161: 18.87115385 | AR161: 0 | AS161: 0 | BD161: 157
A162: 0 | C162: =IF(input!L12="","",input!L12) ->  | D162: " | F162: ", | AE162: 158 | AF162: 104 | AJ162: 17.69207464 | AK162: 20.05023306 | AL162: 16.51299543 | AM162: 21.22931226 | AN162: 15.33391622 | AO162: 22.40839147 | AP162: 18.87115385 | AR162: 0 | AS162: 0 | BD162: 158
A163: 0 | C163: =IF(input!L13="","",input!L13) ->  | D163: " | F163: ", | AE163: 159 | AF163: 104 | AJ163: 17.69207464 | AK163: 20.05023306 | AL163: 16.51299543 | AM163: 21.22931226 | AN163: 15.33391622 | AO163: 22.40839147 | AP163: 18.87115385 | AR163: 0 | AS163: 0 | BD163: 159
A164: 0 | C164: =IF(input!L14="","",input!L14) ->  | D164: " | F164: ", | AE164: 160 | AF164: 104 | AJ164: 17.69207464 | AK164: 20.05023306 | AL164: 16.51299543 | AM164: 21.22931226 | AN164: 15.33391622 | AO164: 22.40839147 | AP164: 18.87115385 | AR164: 0 | AS164: 0 | BD164: 160
A165: 0 | C165: =IF(input!L15="","",input!L15) ->  | D165: " | F165: ", | AE165: 161 | AF165: =IF((Anzahl>AE165),AE165,Anzahl) -> 104 | AH165: =IF(OGW="",#N/A,IF(B165<>"",OGW,#N/A)) ->  | AI165: =IF(UGW="",#N/A,IF(B165<>"",UGW,#N/A)) ->  | AJ165: 17.69207464 | AK165: 20.05023306 | AL165: 16.51299543 | AM165: 21.22931226 | AN165: 15.33391622 | AO165: 22.40839147 | AP165: 18.87115385 | AR165: =IF(AND(B165<>"",B165<UGW),1,0) -> 0 | AS165: =IF(AND(B165<>"",B165>OGW),1,0) -> 0 | BD165: 161 | BE165: =IF(B165="",NA(),SMALL(xi,BF165)) ->  | BG165: =IF(B165="","",NORMSDIST((BE165-fxds)/Standardabweichung)) ->  | BI165: =IF(IF(B165="","",SMALL(BG,BF165))=0,0.0001,IF(B165="","",SMALL(BG,BF165))) ->  | BK165: =IF(B165="",NA(),NORMSINV((BF165-0.3)/(Anzahl+0.4))) -> 
A166: 0 | C166: =IF(input!L16="","",input!L16) ->  | D166: " | F166: ", | AE166: 162 | AF166: 104 | AJ166: =AJ165 -> 17.69207464 | AK166: 20.05023306 | AL166: 16.51299543 | AM166: 21.22931226 | AN166: 15.33391622 | AO166: 22.40839147 | AP166: 18.87115385 | AR166: 0 | AS166: 0 | BD166: 162
A167: 0 | C167: =IF(input!L17="","",input!L17) ->  | D167: " | F167: ", | AE167: 163 | AF167: 104 | AJ167: 17.69207464 | AK167: 20.05023306 | AL167: 16.51299543 | AM167: 21.22931226 | AN167: 15.33391622 | AO167: 22.40839147 | AP167: 18.87115385 | AR167: 0 | AS167: 0 | BD167: 163
A168: 0 | C168: =IF(input!L18="","",input!L18) ->  | D168: " | F168: ", | AE168: 164 | AF168: 104 | AJ168: 17.69207464 | AK168: 20.05023306 | AL168: 16.51299543 | AM168: 21.22931226 | AN168: 15.33391622 | AO168: 22.40839147 | AP168: 18.87115385 | AR168: 0 | AS168: 0 | BD168: 164
A169: 0 | C169: =IF(input!L19="","",input!L19) ->  | D169: " | F169: ", | AE169: 165 | AF169: 104 | AJ169: 17.69207464 | AK169: 20.05023306 | AL169: 16.51299543 | AM169: 21.22931226 | AN169: 15.33391622 | AO169: 22.40839147 | AP169: 18.87115385 | AR169: 0 | AS169: 0 | BD169: 165
A170: 0 | C170: =IF(input!L20="","",input!L20) ->  | D170: " | F170: ", | AE170: 166 | AF170: 104 | AJ170: 17.69207464 | AK170: 20.05023306 | AL170: 16.51299543 | AM170: 21.22931226 | AN170: 15.33391622 | AO170: 22.40839147 | AP170: 18.87115385 | AR170: 0 | AS170: 0 | BD170: 166
A171: 0 | C171: =IF(input!L21="","",input!L21) ->  | D171: " | F171: ", | AE171: 167 | AF171: 104 | AJ171: 17.69207464 | AK171: 20.05023306 | AL171: 16.51299543 | AM171: 21.22931226 | AN171: 15.33391622 | AO171: 22.40839147 | AP171: 18.87115385 | AR171: 0 | AS171: 0 | BD171: 167
A172: 0 | C172: =IF(input!L22="","",input!L22) ->  | D172: " | F172: ", | AE172: 168 | AF172: 104 | AJ172: 17.69207464 | AK172: 20.05023306 | AL172: 16.51299543 | AM172: 21.22931226 | AN172: 15.33391622 | AO172: 22.40839147 | AP172: 18.87115385 | AR172: 0 | AS172: 0 | BD172: 168
A173: 0 | C173: =IF(input!L23="","",input!L23) ->  | D173: " | F173: ", | AE173: 169 | AF173: 104 | AJ173: 17.69207464 | AK173: 20.05023306 | AL173: 16.51299543 | AM173: 21.22931226 | AN173: 15.33391622 | AO173: 22.40839147 | AP173: 18.87115385 | AR173: 0 | AS173: 0 | BD173: 169
A174: 0 | C174: =IF(input!L24="","",input!L24) ->  | D174: " | F174: ", | AE174: 170 | AF174: 104 | AJ174: 17.69207464 | AK174: 20.05023306 | AL174: 16.51299543 | AM174: 21.22931226 | AN174: 15.33391622 | AO174: 22.40839147 | AP174: 18.87115385 | AR174: 0 | AS174: 0 | BD174: 170
A175: 0 | C175: =IF(input!L25="","",input!L25) ->  | D175: " | F175: ", | AE175: 171 | AF175: 104 | AJ175: 17.69207464 | AK175: 20.05023306 | AL175: 16.51299543 | AM175: 21.22931226 | AN175: 15.33391622 | AO175: 22.40839147 | AP175: 18.87115385 | AR175: 0 | AS175: 0 | BD175: 171
A176: 0 | C176: =IF(input!L26="","",input!L26) ->  | D176: " | F176: ", | AE176: 172 | AF176: 104 | AJ176: 17.69207464 | AK176: 20.05023306 | AL176: 16.51299543 | AM176: 21.22931226 | AN176: 15.33391622 | AO176: 22.40839147 | AP176: 18.87115385 | AR176: 0 | AS176: 0 | BD176: 172
A177: 0 | C177: =IF(input!L27="","",input!L27) ->  | D177: " | F177: ", | AE177: 173 | AF177: 104 | AJ177: 17.69207464 | AK177: 20.05023306 | AL177: 16.51299543 | AM177: 21.22931226 | AN177: 15.33391622 | AO177: 22.40839147 | AP177: 18.87115385 | AR177: 0 | AS177: 0 | BD177: 173
A178: 0 | C178: =IF(input!L28="","",input!L28) ->  | D178: " | F178: ", | AE178: 174 | AF178: 104 | AJ178: 17.69207464 | AK178: 20.05023306 | AL178: 16.51299543 | AM178: 21.22931226 | AN178: 15.33391622 | AO178: 22.40839147 | AP178: 18.87115385 | AR178: 0 | AS178: 0 | BD178: 174
A179: 0 | C179: =IF(input!L29="","",input!L29) ->  | D179: " | F179: ", | AE179: 175 | AF179: 104 | AJ179: 17.69207464 | AK179: 20.05023306 | AL179: 16.51299543 | AM179: 21.22931226 | AN179: 15.33391622 | AO179: 22.40839147 | AP179: 18.87115385 | AR179: 0 | AS179: 0 | BD179: 175
A180: 0 | C180: =IF(input!L30="","",input!L30) ->  | D180: " | F180: ", | AE180: 176 | AF180: 104 | AJ180: 17.69207464 | AK180: 20.05023306 | AL180: 16.51299543 | AM180: 21.22931226 | AN180: 15.33391622 | AO180: 22.40839147 | AP180: 18.87115385 | AR180: 0 | AS180: 0 | BD180: 176
A181: 0 | C181: =IF(input!L31="","",input!L31) ->  | D181: " | F181: ", | AE181: 177 | AF181: 104 | AJ181: 17.69207464 | AK181: 20.05023306 | AL181: 16.51299543 | AM181: 21.22931226 | AN181: 15.33391622 | AO181: 22.40839147 | AP181: 18.87115385 | AR181: 0 | AS181: 0 | BD181: 177
A182: 0 | C182: =IF(input!L32="","",input!L32) ->  | D182: " | F182: ", | AE182: 178 | AF182: 104 | AJ182: =AJ181 -> 17.69207464 | AK182: 20.05023306 | AL182: 16.51299543 | AM182: 21.22931226 | AN182: 15.33391622 | AO182: 22.40839147 | AP182: 18.87115385 | AR182: 0 | AS182: 0 | BD182: 178
A183: 0 | C183: =IF(input!L33="","",input!L33) ->  | D183: " | F183: ", | AE183: 179 | AF183: 104 | AJ183: 17.69207464 | AK183: 20.05023306 | AL183: 16.51299543 | AM183: 21.22931226 | AN183: 15.33391622 | AO183: 22.40839147 | AP183: 18.87115385 | AR183: 0 | AS183: 0 | BD183: 179
A184: 0 | C184: =IF(input!L34="","",input!L34) ->  | D184: " | F184: ", | AE184: 180 | AF184: 104 | AJ184: 17.69207464 | AK184: 20.05023306 | AL184: 16.51299543 | AM184: 21.22931226 | AN184: 15.33391622 | AO184: 22.40839147 | AP184: 18.87115385 | AR184: 0 | AS184: 0 | BD184: 180
A185: 0 | C185: =IF(input!L35="","",input!L35) ->  | D185: " | F185: ", | AE185: 181 | AF185: 104 | AJ185: 17.69207464 | AK185: 20.05023306 | AL185: 16.51299543 | AM185: 21.22931226 | AN185: 15.33391622 | AO185: 22.40839147 | AP185: 18.87115385 | AR185: 0 | AS185: 0 | BD185: 181
A186: 0 | C186: =IF(input!L36="","",input!L36) ->  | D186: " | F186: ", | AE186: 182 | AF186: 104 | AJ186: 17.69207464 | AK186: 20.05023306 | AL186: 16.51299543 | AM186: 21.22931226 | AN186: 15.33391622 | AO186: 22.40839147 | AP186: 18.87115385 | AR186: 0 | AS186: 0 | BD186: 182
A187: 0 | C187: =IF(input!L37="","",input!L37) ->  | D187: " | F187: ", | AE187: 183 | AF187: 104 | AJ187: 17.69207464 | AK187: 20.05023306 | AL187: 16.51299543 | AM187: 21.22931226 | AN187: 15.33391622 | AO187: 22.40839147 | AP187: 18.87115385 | AR187: 0 | AS187: 0 | BD187: 183
A188: 0 | C188: =IF(input!L38="","",input!L38) ->  | D188: " | F188: ", | AE188: 184 | AF188: 104 | AJ188: 17.69207464 | AK188: 20.05023306 | AL188: 16.51299543 | AM188: 21.22931226 | AN188: 15.33391622 | AO188: 22.40839147 | AP188: 18.87115385 | AR188: 0 | AS188: 0 | BD188: 184
A189: 0 | C189: =IF(input!L39="","",input!L39) ->  | D189: " | F189: ", | AE189: 185 | AF189: 104 | AJ189: 17.69207464 | AK189: 20.05023306 | AL189: 16.51299543 | AM189: 21.22931226 | AN189: 15.33391622 | AO189: 22.40839147 | AP189: 18.87115385 | AR189: 0 | AS189: 0 | BD189: 185
A190: 0 | C190: =IF(input!L40="","",input!L40) ->  | D190: " | F190: ", | AE190: 186 | AF190: 104 | AJ190: 17.69207464 | AK190: 20.05023306 | AL190: 16.51299543 | AM190: 21.22931226 | AN190: 15.33391622 | AO190: 22.40839147 | AP190: 18.87115385 | AR190: 0 | AS190: 0 | BD190: 186
A191: 0 | C191: =IF(input!L41="","",input!L41) ->  | D191: " | F191: ", | AE191: 187 | AF191: 104 | AJ191: 17.69207464 | AK191: 20.05023306 | AL191: 16.51299543 | AM191: 21.22931226 | AN191: 15.33391622 | AO191: 22.40839147 | AP191: 18.87115385 | AR191: 0 | AS191: 0 | BD191: 187
A192: 0 | C192: =IF(input!L42="","",input!L42) ->  | D192: " | F192: ", | AE192: 188 | AF192: 104 | AJ192: 17.69207464 | AK192: 20.05023306 | AL192: 16.51299543 | AM192: 21.22931226 | AN192: 15.33391622 | AO192: 22.40839147 | AP192: 18.87115385 | AR192: 0 | AS192: 0 | BD192: 188
A193: 0 | C193: =IF(input!L43="","",input!L43) ->  | D193: " | F193: ", | AE193: 189 | AF193: 104 | AJ193: 17.69207464 | AK193: 20.05023306 | AL193: 16.51299543 | AM193: 21.22931226 | AN193: 15.33391622 | AO193: 22.40839147 | AP193: 18.87115385 | AR193: 0 | AS193: 0 | BD193: 189
A194: 0 | C194: =IF(input!L44="","",input!L44) ->  | D194: " | F194: ", | AE194: 190 | AF194: 104 | AJ194: 17.69207464 | AK194: 20.05023306 | AL194: 16.51299543 | AM194: 21.22931226 | AN194: 15.33391622 | AO194: 22.40839147 | AP194: 18.87115385 | AR194: 0 | AS194: 0 | BD194: 190
A195: 0 | C195: =IF(input!L45="","",input!L45) ->  | D195: " | F195: ", | AE195: 191 | AF195: 104 | AJ195: 17.69207464 | AK195: 20.05023306 | AL195: 16.51299543 | AM195: 21.22931226 | AN195: 15.33391622 | AO195: 22.40839147 | AP195: 18.87115385 | AR195: 0 | AS195: 0 | BD195: 191
A196: 0 | C196: =IF(input!L46="","",input!L46) ->  | D196: " | F196: ", | AE196: 192 | AF196: 104 | AJ196: 17.69207464 | AK196: 20.05023306 | AL196: 16.51299543 | AM196: 21.22931226 | AN196: 15.33391622 | AO196: 22.40839147 | AP196: 18.87115385 | AR196: 0 | AS196: 0 | BD196: 192
A197: 0 | C197: =IF(input!L47="","",input!L47) ->  | D197: " | F197: ", | AE197: 193 | AF197: =IF((Anzahl>AE197),AE197,Anzahl) -> 104 | AH197: =IF(OGW="",#N/A,IF(B197<>"",OGW,#N/A)) ->  | AI197: =IF(UGW="",#N/A,IF(B197<>"",UGW,#N/A)) ->  | AJ197: 17.69207464 | AK197: 20.05023306 | AL197: 16.51299543 | AM197: 21.22931226 | AN197: 15.33391622 | AO197: 22.40839147 | AP197: 18.87115385 | AR197: =IF(AND(B197<>"",B197<UGW),1,0) -> 0 | AS197: =IF(AND(B197<>"",B197>OGW),1,0) -> 0 | BD197: 193 | BE197: =IF(B197="",NA(),SMALL(xi,BF197)) ->  | BG197: =IF(B197="","",NORMSDIST((BE197-fxds)/Standardabweichung)) ->  | BI197: =IF(IF(B197="","",SMALL(BG,BF197))=0,0.0001,IF(B197="","",SMALL(BG,BF197))) ->  | BK197: =IF(B197="",NA(),NORMSINV((BF197-0.3)/(Anzahl+0.4))) -> 
A198: =IF(B198=C198,0,1) -> 0 | C198: =IF(input!L48="","",input!L48) ->  | D198: " | E198: =SUBSTITUTE(C198,",",".") ->  | F198: ", | AE198: 194 | AF198: 104 | AG198: =IF(B198<>"",B198,#N/A) ->  | AJ198: =AJ197 -> 17.69207464 | AK198: 20.05023306 | AL198: 16.51299543 | AM198: 21.22931226 | AN198: 15.33391622 | AO198: 22.40839147 | AP198: 18.87115385 | AR198: 0 | AS198: 0 | BD198: 194 | BH198: =IF(B198="","",1-BG198) ->  | BJ198: =IF(B198="","",(2*BF198-1)*(LN(BI198)+LN(BG198))) -> 
A199: 0 | C199: =IF(input!L49="","",input!L49) ->  | D199: " | F199: ", | AE199: 195 | AF199: 104 | AJ199: 17.69207464 | AK199: 20.05023306 | AL199: 16.51299543 | AM199: 21.22931226 | AN199: 15.33391622 | AO199: 22.40839147 | AP199: 18.87115385 | AR199: 0 | AS199: 0 | BD199: 195 | BF199: =IF(B199="","",1+BF198) -> 
A200: 0 | C200: =IF(input!L50="","",input!L50) ->  | D200: " | F200: ", | AE200: 196 | AF200: 104 | AJ200: 17.69207464 | AK200: 20.05023306 | AL200: 16.51299543 | AM200: 21.22931226 | AN200: 15.33391622 | AO200: 22.40839147 | AP200: 18.87115385 | AR200: 0 | AS200: 0 | BD200: 196
... 6 more rows

Sheet info_setup
B2: =language!BX1 -> buy the full licence | C2: via mycommerce | D2: or write to | E2: roland.schnurr@sixsigmablackbelt.de
B4: =language!BC1 -> language
B5: =language!BD1 -> user - email | C5: max.mustermann@sixsigmablackbelt.de
B6: =language!BE1 -> user - key | C6: AAABBB
B8: =language!BF1 -> valid until | C8: =calculation!I28 -> 01.12.2023
B9: =language!BG1 -> note | C9: =calculation!I29 -> kostenlos
B10: =language!BH1 -> 
B11: =language!BI1 -> note | C11: =calculation!H20 -> ergebnisuservalidieren:user: max.mustermann@sixsigmablackbelt.de -> valid; cmk-> valid; licence key = AAABBB -> valid; date of licence; (2023-12-01) greater than today (2023-10-09) -> valid; calculation at 2023-10-09 22:40:13.802484; note: kostenlos
B15: =language!BT1 -> contact | C15: roland.schnurr@sixsigmablackbelt.de
B16: =language!BU1 -> homepage | C16: www.sixsigmablackbelt.de

Sheet language (hidden)
B1: 2 | C1: =VLOOKUP($B$1,$B$4:$CL$15,2,FALSE) -> process and machine capability | D1: =VLOOKUP($B$1,$B$4:$CL$15,3,FALSE) -> value could be changed | E1: =VLOOKUP($B$1,$B$4:$CL$15,4,FALSE) -> value is calculated | F1: =VLOOKUP($B$1,$B$4:$CL$15,5,FALSE) -> part: | G1: =VLOOKUP($B$1,$B$4:$CL$15,6,FALSE) -> part number: | H1: =VLOOKUP($B$1,$B$4:$CL$15,7,FALSE) -> drawing: | I1: =VLOOKUP($B$1,$B$4:$CL$15,8,FALSE) -> inspector: | J1: =VLOOKUP($B$1,$B$4:$CL$15,9,FALSE) -> measuring dev: | K1: =VLOOKUP($B$1,$B$4:$CL$15,10,FALSE) -> date: | L1: =VLOOKUP($B$1,$B$4:$CL$15,11,FALSE) -> attribute: | M1: =VLOOKUP($B$1,$B$4:$CL$15,12,FALSE) -> measuring unit: | N1: =VLOOKUP($B$1,$B$4:$CL$15,13,FALSE) -> nominal value = | O1: =VLOOKUP($B$1,$B$4:$CL$15,14,FALSE) -> lower spec. limit LSL | P1: =VLOOKUP($B$1,$B$4:$CL$15,15,FALSE) -> upper spec. limit USL | Q1: =VLOOKUP($B$1,$B$4:$CL$15,16,FALSE) -> number of classes histogram | R1: =VLOOKUP($B$1,$B$4:$CL$15,17,FALSE) -> Cpk< | S1: =VLOOKUP($B$1,$B$4:$CL$15,18,FALSE) -> Cpk | T1: =VLOOKUP($B$1,$B$4:$CL$15,19,FALSE) -> Cpk> | U1: =VLOOKUP($B$1,$B$4:$CL$15,20,FALSE) -> between | V1: =VLOOKUP($B$1,$B$4:$CL$15,21,FALSE) -> process not capable | W1: =VLOOKUP($B$1,$B$4:$CL$15,22,FALSE) -> process limited capable | X1: =VLOOKUP($B$1,$B$4:$CL$15,23,FALSE) -> process capable | Y1: =VLOOKUP($B$1,$B$4:$CL$15,24,FALSE) -> sample size | Z1: =VLOOKUP($B$1,$B$4:$CL$15,25,FALSE) -> mid | AA1: =VLOOKUP($B$1,$B$4:$CL$15,26,FALSE) -> standard deviation s | AB1: =VLOOKUP($B$1,$B$4:$CL$15,27,FALSE) -> values are according Andersson Darling test | AC1: =VLOOKUP($B$1,$B$4:$CL$15,28,FALSE) -> normal distributed | AD1: =VLOOKUP($B$1,$B$4:$CL$15,29,FALSE) -> not normal distributed | AE1: =VLOOKUP($B$1,$B$4:$CL$15,30,FALSE) -> 0 | AF1: =VLOOKUP($B$1,$B$4:$CL$15,31,FALSE) -> USL | AG1: =VLOOKUP($B$1,$B$4:$CL$15,32,FALSE) -> LSL | AH1: =VLOOKUP($B$1,$B$4:$CL$15,33,FALSE) -> random sample chronological | AI1: =VLOOKUP($B$1,$B$4:$CL$15,34,FALSE) -> histogram | AJ1: =VLOOKUP($B$1,$B$4:$CL$15,35,FALSE) -> probability plot | AK1: =VLOOKUP($B$1,$B$4:$CL$15,36,FALSE) -> 0 | AL1: =VLOOKUP($B$1,$B$4:$CL$15,37,FALSE) -> Cpkl | AM1: =VLOOKUP($B$1,$B$4:$CL$15,38,FALSE) -> Cpku | AN1: =VLOOKUP($B$1,$B$4:$CL$15,39,FALSE) -> Cp | AO1: =VLOOKUP($B$1,$B$4:$CL$15,40,FALSE) -> Cpk | AP1: =VLOOKUP($B$1,$B$4:$CL$15,41,FALSE) -> probability values | AQ1: =VLOOKUP($B$1,$B$4:$CL$15,42,FALSE) -> evaluation Cpk => | AR1: =VLOOKUP($B$1,$B$4:$CL$15,43,FALSE) -> median | AS1: =VLOOKUP($B$1,$B$4:$CL$15,44,FALSE) -> range | AT1: =VLOOKUP($B$1,$B$4:$CL$15,45,FALSE) -> minimum | AU1: =VLOOKUP($B$1,$B$4:$CL$15,46,FALSE) -> maximum | AV1: =VLOOKUP($B$1,$B$4:$CL$15,47,FALSE) -> calculated performance | AW1: =VLOOKUP($B$1,$B$4:$CL$15,48,FALSE) -> exceedance | AX1: =VLOOKUP($B$1,$B$4:$CL$15,49,FALSE) -> pLSL | AY1: =VLOOKUP($B$1,$B$4:$CL$15,50,FALSE) -> pUSL | AZ1: =VLOOKUP($B$1,$B$4:$CL$15,51,FALSE) -> p | BA1: =VLOOKUP($B$1,$B$4:$CL$15,52,FALSE) -> observed performance in ppm | BB1: =VLOOKUP($B$1,$B$4:$CL$15,53,FALSE) -> 0 | BC1: =VLOOKUP($B$1,$B$4:$CL$15,54,FALSE) -> language | BD1: =VLOOKUP($B$1,$B$4:$CL$15,55,FALSE) -> user - email | BE1: =VLOOKUP($B$1,$B$4:$CL$15,56,FALSE) -> user - key | BF1: =VLOOKUP($B$1,$B$4:$CL$15,57,FALSE) -> valid until | BG1: =VLOOKUP($B$1,$B$4:$CL$15,58,FALSE) -> note | BH1: =VLOOKUP($B$1,$B$4:$CL$15,59,FALSE) ->  | BI1: =VLOOKUP($B$1,$B$4:$CL$15,60,FALSE) -> note | BJ1: =VLOOKUP($B$1,$B$4:$CL$15,61,FALSE) -> The values are calculated | BK1: =VLOOKUP($B$1,$B$4:$CL$15,62,FALSE) -> Sie haben Werte verändert. Bitte kalkulieren | BL1: =VLOOKUP($B$1,$B$4:$CL$15,63,FALSE) -> If your measured value is one-sided limited, enter only the corresponding upper or lower limit value. With a one-sided limit, in the industrial environment only the Cpk is calclulated | BM1: =VLOOKUP($B$1,$B$4:$CL$15,64,FALSE) -> u-value | BN1: =VLOOKUP($B$1,$B$4:$CL$15,65,FALSE) -> + 3 sigma | BO1: =VLOOKUP($B$1,$B$4:$CL$15,66,FALSE) -> - 3 sigma | BP1: =VLOOKUP($B$1,$B$4:$CL$15,67,FALSE) -> distribution | BQ1: =VLOOKUP($B$1,$B$4:$CL$15,68,FALSE) -> help | BR1: =VLOOKUP($B$1,$B$4:$CL$15,69,FALSE) -> normal distribution | BS1: =VLOOKUP($B$1,$B$4:$CL$15,70,FALSE) -> truncated normal distribution | BT1: =VLOOKUP($B$1,$B$4:$CL$15,71,FALSE) -> contact | BU1: =VLOOKUP($B$1,$B$4:$CL$15,72,FALSE) -> homepage | BV1: =VLOOKUP($B$1,$B$4:$CL$15,73,FALSE) -> Without a valid licence, the calculation is limited to 20 values - More information (e.g. how to get a full licence) in the spreadsheet 'info_setup'. | BW1: =VLOOKUP($B$1,$B$4:$CL$15,74,FALSE) -> Licence not valid, the calculation is limited to 20 values - More information (e.g. how to get a full licence) in the spreadsheet 'info_setup'. | BX1: =VLOOKUP($B$1,$B$4:$CL$15,75,FALSE) -> buy the full licence
A2: Sprache | B2: Beschreibung | C2: 1 | D2: 2 | E2: 3 | F2: 4 | G2: 5 | H2: 6 | I2: 7 | J2: 8 | K2: 9 | L2: 10 | M2: 11 | N2: 12 | O2: 13 | P2: 14 | Q2: 15 | R2: 16 | S2: 17 | T2: 18 | U2: 19 | V2: 20 | W2: 21 | X2: 22 | Y2: 23 | Z2: 24 | AA2: 25 | AB2: 26 | AC2: 27 | AD2: 28 | AE2: 29 | AF2: 30 | AG2: 31 | AH2: 32 | AI2: 33 | AJ2: 34 | AK2: 35 | AL2: 36 | AM2: 37 | AN2: 38 | AO2: 39 | AP2: 40 | AQ2: 41 | AR2: 42 | AS2: 43 | AT2: 44 | AU2: 45 | AV2: 46 | AW2: 47 | AX2: 48 | AY2: 49 | AZ2: 50 | BA2: 51 | BB2: 52 | BC2: 53 | BD2: 54 | BE2: 55 | BF2: 56 | BG2: 57 | BH2: 58 | BI2: 59 | BJ2: 61 | BK2: 62 | BL2: 63 | BM2: 63 | BN2: 64 | BO2: 65 | BP2: 66 | BQ2: 67 | BR2: 68 | BS2: 69 | BT2: 70 | BU2: 71 | BV2: 72 | BW2: 73 | BX2: 74
A3: Tabelle | C3: input | D3: input | E3: input | F3: input | G3: input | H3: input | I3: input | J3: input | K3: input | L3: input | M3: input | N3: input | O3: input | P3: input | Q3: input | R3: input | S3: input | T3: input | U3: input | V3: input | W3: input | X3: input | Y3: input | Z3: input | AA3: input | AB3: input | AC3: input | AD3: input | AE3: input | AF3: input | AG3: input | AH3: input | AI3: input | AJ3: input | AK3: input | AL3: input | AM3: input | AN3: input | AO3: input | AP3: input | AQ3: input | AR3: input | AS3: input | AT3: input | AU3: input | AV3: input | AW3: input | AX3: input | AY3: input | AZ3: input | BA3: input | BC3: language | BD3: language | BE3: language | BF3: language | BG3: language | BH3: language | BI3: language | BJ3: input | BK3: input | BL3: input | BM3: input | BN3: input | BO3: input | BP3: input | BQ3: info_setup | BR3: input | BS3: input | BT3: info_setup | BU3: info_setup | BV3: input | BW3: licence | BX3: licence
B4: Zelle | C4: O2 | D4: O4 | E4: O5 | F4: N7 | G4: N8 | H4: N9 | I4: N10 | J4: N11 | K4: N12 | L4: N13 | M4: N14 | N4: N15 | O4: N16 | P4: N17 | Q4: N18 | R4: N19 | S4: N20 | T4: N21 | U4: O20 | V4: P19 | W4: P20 | X4: P21 | Y4: N23 | Z4: N24 | AA4: N25 | AB4: N26 | AC4: P26 | AD4: P26 | AF4: Diagramm | AG4: Diagramm | AH4: Diagramm | AI4: Diagramm | AJ4: Diagramm | AL4: O30 | AM4: O31 | AN4: O32 | AO4: O33 | AP4: N30 | AQ4: N34 | AR4: N36 | AS4: N37 | AT4: N38 | AU4: N39 | AV4: N41 | AW4: N42 | AX4: O42 | AY4: O43 | AZ4: O44 | BA4: N46 | BC4: B4 | BD4: B5 | BE4: B6 | BF4: B7 | BG4: B8 | BH4: B9 | BI4: B10 | BJ4: AB2 | BK4: AB2 | BL4: R48 | BM4: Diagramm | BN4: Diagramm | BO4: Diagramm | BP4: N22 | BQ4: Verteilung | BR4: Verteilung | BS4: Verteilung | BT4: B19 | BU4: B20 | BV4: msgbox | BW4: msgbox | BX4: msgbox
A5: deutsch | B5: 1 | C5: Prozess- und Maschinenfähigkeit | D5: Werte können geändert werden | E5: Werte werden berechnet (Blatt Berechnung) | F5: Artikel: | G5: Nummer: | H5: Zeichnung: | I5: Prüfer: | J5: Messmittel: | K5: Datum: | L5: Merkmal: | M5: Maßeinheit: | N5: Sollwert msoll = | O5: UGW | P5: OGW | Q5: Anzahl Klassen Histogramm | R5: Cpk< | S5: Cpk | T5: Cpk> | U5: dazwischen | V5: Prozess nicht fähig | W5: Prozess bedingt fähig | X5: Prozess fähig | Y5: Stichprobenumfang | Z5: Mittelwert | AA5: Standardabweichung | AB5: Die Werte sind nach Andersson Darling Test | AC5: normalverteilt | AD5: nicht normalverteilt | AF5: OGW | AG5: UGW | AH5: Stichprobe chronologisch | AI5: Histogramm | AJ5: Wahrscheinlichkeitsnetz | AL5: Cmu | AM5: Cmo | AN5: Cm | AO5: Cmk | AP5: Fähigkeits- kennwerte | AQ5: ="Bewertung cmk =>" -> Bewertung cmk => | AR5: Median z | AS5: Spannweite R | AT5: Minimum | AU5: Maximum | AV5: Berechnete Leistung in ppm | AW5: Über- schreitungs- anteil | AX5: pUGW | AY5: pOGW | AZ5: p | BA5: Beobachtete Leistung in ppm | BC5: Sprache | BD5: User - Email | BE5: User - key | BF5: Gültig bis | BG5: Notizen | BH5: ="" ->  | BI5: Bemerkung | BJ5: Status: Die Werte im Arbeitsblatt sind kalkuliert | BK5: Status: Sie haben Werte verändert. Zum Kalkulieren den untenstehenden Button drücken. | BL5: Ist Ihr Messwert einseitig begrenzt, so geben Sie nur den entsprechenden oberen oder unteren Grenzwert an. Bei einer einseitigen Grenze wird im industriellen Umfeld nur der Cmk berechnet. | BM5: u-Wert | BN5: ="+ 3 Sigma" -> + 3 Sigma | BO5: ="- 3 Sigma" -> - 3 Sigma | BP5: Verteilung | BQ5: Hilfe | BR5: Normalverteilung | BS5: Betragsverteilung 1. Art | BT5: Kontakt | BU5: homepage | BV5: Ohne valide Lizenz ist die Berechnung auf 20 Werte beschränkt - Mehr Info (z. Bsp. wie Sie eine Volllizenz erhalten können) unter dem Tabellenblatt 'info_setup' | BW5: Lizenz nicht gültig - es werden maximal 20 Werte berechnet -Mehr Info (z. Bsp. wie Sie eine Volllizenz erhalten können) unter dem Tabellenblatt 'info_setup' | BX5: Gültige Lizenz erwerben
A6: english | B6: 2 | C6: process and machine capability | D6: value could be changed | E6: value is calculated | F6: part: | G6: part number: | H6: drawing: | I6: inspector: | J6: measuring dev: | K6: date: | L6: attribute: | M6: measuring unit: | N6: nominal value = | O6: lower spec. limit LSL | P6: upper spec. limit USL | Q6: number of classes histogram | R6: Cpk< | S6: Cpk | T6: Cpk> | U6: between | V6: process not capable | W6: process limited capable | X6: process capable | Y6: sample size | Z6: mid | AA6: standard deviation s | AB6: values are according Andersson Darling test | AC6: normal distributed | AD6: not normal distributed | AF6: USL | AG6: LSL | AH6: random sample chronological | AI6: histogram | AJ6: probability plot | AL6: Cpkl | AM6: Cpku | AN6: Cp | AO6: Cpk | AP6: probability values | AQ6: evaluation Cpk => | AR6: median | AS6: range | AT6: minimum | AU6: maximum | AV6: calculated performance | AW6: exceedance | AX6: pLSL | AY6: pUSL | AZ6: p | BA6: observed performance in ppm | BC6: language | BD6: user - email | BE6: user - key | BF6: valid until | BG6: note | BH6: ="" ->  | BI6: note | BJ6: The values are calculated | BK6: Sie haben Werte verändert. Bitte kalkulieren | BL6: If your measured value is one-sided limited, enter only the corresponding upper or lower limit value. With a one-sided limit, in the industrial environment only the Cpk is calclulated | BM6: u-value | BN6: ="+ 3 sigma" -> + 3 sigma | BO6: ="- 3 sigma" -> - 3 sigma | BP6: distribution | BQ6: help | BR6: normal distribution | BS6: truncated normal distribution | BT6: contact | BU6: homepage | BV6: Without a valid licence, the calculation is limited to 20 values - More information (e.g. how to get a full licence) in the spreadsheet 'info_setup'. | BW6: Licence not valid, the calculation is limited to 20 values - More information (e.g. how to get a full licence) in the spreadsheet 'info_setup'. | BX6: buy the full licence
A7: italiano | B7: 3 | C7: Capacità di processo e macchina | D7: Valore modificabile | E7: Valore calcolato | F7: Articolo: | G7: Codice: | H7: Disegno | I7: Ispettore | J7: Strumento | K7: Data | L7: Attributo: | M7: Unità di misura | N7: Valore nominale = | O7: Limite inferiore di specifica LSM | P7: Limite superiore di specifica LSS | Q7: Numero di classi dell'istogramma | R7: Cpk< | S7: Cpk | T7: Cpk> | U7: tra | V7: Processo non capace | W7: Processo capace in modo limitatato | X7: Processo capace | Y7: Dimensione del campione | Z7: media | AA7: Deviazione standard s | AB7: Valori in accorso al test Andersson Darling | AC7: Distribuzione normale | AD7: Distribuzione non normale | AF7: USL | AG7: LSL | AH7: Campione casuale cronologico | AI7: Istogramma | AJ7: Grafico delle probabilità | AL7: Cpkl | AM7: Cpku | AN7: Cp | AO7: Cpk | AP7: Valori di probabilità | AQ7: Vautazione Cpk => | AR7: Media | AS7: Range | AT7: Minimo | AU7: Massimo | AV7: Performance calcolata | AW7: Eccedenza | AX7: pLSL | AY7: pUSL | AZ7: p | BA7: Prestazione osservata in ppm | BC7: d | BD7: user - Email | BE7: user - key | BF7: valid until | BG7: note | BH7: ="" ->  | BI7: note | BJ7: Ihre aktuellen Werte sind kalkuliert | BK7: Sie haben Werte verändert. Bitte kalkulieren | BL7: Se il valore misurato è limitato da un lato, inserire solo il valore limite superiore o inferiore corrispondente. Se il limite è unilaterale, nell'ambiente industriale viene calcolato solo il Cpk. | BN7: ="+ 3 sigma" -> + 3 sigma | BO7: ="- 3 sigma" -> - 3 sigma | BP7: distribuzione | BQ7: distribuzione | BR7: distribuzione normale | BS7: distribuzione normale troncata | BT7: NN | BU7: NN | BV7: Senza una licenza valida, il calcolo è limitato a 20 valori - Ulteriori informazioni (ad esempio su come ottenere una licenza completa) nel foglio di calcolo "info_setup". | BW7: licenz non valida, il calcolo è limitato a 20 valori - Ulteriori informazioni (ad esempio su come ottenere una licenza completa) nel foglio di calcolo "info_setup". | BX7: Acquistare la licenza completa
A8: espanol | B8: 4 | C8: NN2 | D8: NN2 | E8: NN2 | F8: NN2 | G8: NN2 | H8: NN2 | I8: NN2 | J8: NN2 | K8: NN2 | L8: NN2 | M8: NN2 | N8: NN2 | O8: NN2 | P8: NN2 | Q8: NN2 | R8: NN2 | S8: NN2 | T8: NN2 | U8: NN2 | V8: NN2 | W8: NN2 | X8: NN2 | Y8: NN2 | Z8: NN2 | AA8: NN2 | AB8: NN2 | AC8: NN2 | AD8: NN2 | AE8: NN2 | AF8: NN2 | AG8: NN2 | AH8: NN2 | AI8: NN2 | AJ8: NN2 | AK8: NN2 | AL8: NN2 | AM8: NN2 | AN8: NN2 | AO8: NN2 | AP8: NN2 | AQ8: NN2 | AR8: NN2 | AS8: NN2 | AT8: NN2 | AU8: NN2 | AV8: NN2 | AW8: NN2 | AX8: NN2 | AY8: NN2 | AZ8: NN2 | BA8: NN2 | BB8: NN2 | BC8: NN2 | BD8: NN2 | BE8: NN2 | BF8: NN2 | BG8: NN2 | BH8: NN2 | BI8: NN2 | BJ8: NN2 | BK8: NN2 | BL8: NN2 | BM8: NN2 | BN8: NN2 | BO8: NN2 | BP8: NN2 | BQ8: NN2 | BR8: NN2 | BS8: NN2 | BT8: NN2 | BU8: NN2 | BV8: NN2 | BW8: NN2 | BX8: NN2
A9: francais | B9: 5 | C9: NN3 | D9: NN3 | E9: NN3 | F9: NN3 | G9: NN3 | H9: NN3 | I9: NN3 | J9: NN3 | K9: NN3 | L9: NN3 | M9: NN3 | N9: NN3 | O9: NN3 | P9: NN3 | Q9: NN3 | R9: NN3 | S9: NN3 | T9: NN3 | U9: NN3 | V9: NN3 | W9: NN3 | X9: NN3 | Y9: NN3 | Z9: NN3 | AA9: NN3 | AB9: NN3 | AC9: NN3 | AD9: NN3 | AE9: NN3 | AF9: NN3 | AG9: NN3 | AH9: NN3 | AI9: NN3 | AJ9: NN3 | AK9: NN3 | AL9: NN3 | AM9: NN3 | AN9: NN3 | AO9: NN3 | AP9: NN3 | AQ9: NN3 | AR9: NN3 | AS9: NN3 | AT9: NN3 | AU9: NN3 | AV9: NN3 | AW9: NN3 | AX9: NN3 | AY9: NN3 | AZ9: NN3 | BA9: NN3 | BB9: NN3 | BC9: NN3 | BD9: NN3 | BE9: NN3 | BF9: NN3 | BG9: NN3 | BH9: NN3 | BI9: NN3 | BJ9: NN3 | BK9: NN3 | BL9: NN3 | BM9: NN3 | BN9: NN3 | BO9: NN3 | BP9: NN3 | BQ9: NN3 | BR9: NN3 | BS9: NN3 | BT9: NN3 | BU9: NN3 | BV9: NN3 | BW9: NN3 | BX9: NN3
A10: portugues | B10: 6 | C10: NN4 | D10: NN4 | E10: NN4 | F10: NN4 | G10: NN4 | H10: NN4 | I10: NN4 | J10: NN4 | K10: NN4 | L10: NN4 | M10: NN4 | N10: NN4 | O10: NN4 | P10: NN4 | Q10: NN4 | R10: NN4 | S10: NN4 | T10: NN4 | U10: NN4 | V10: NN4 | W10: NN4 | X10: NN4 | Y10: NN4 | Z10: NN4 | AA10: NN4 | AB10: NN4 | AC10: NN4 | AD10: NN4 | AE10: NN4 | AF10: NN4 | AG10: NN4 | AH10: NN4 | AI10: NN4 | AJ10: NN4 | AK10: NN4 | AL10: NN4 | AM10: NN4 | AN10: NN4 | AO10: NN4 | AP10: NN4 | AQ10: NN4 | AR10: NN4 | AS10: NN4 | AT10: NN4 | AU10: NN4 | AV10: NN4 | AW10: NN4 | AX10: NN4 | AY10: NN4 | AZ10: NN4 | BA10: NN4 | BB10: NN4 | BC10: NN4 | BD10: NN4 | BE10: NN4 | BF10: NN4 | BG10: NN4 | BH10: NN4 | BI10: NN4 | BJ10: NN4 | BK10: NN4 | BL10: NN4 | BM10: NN4 | BN10: NN4 | BO10: NN4 | BP10: NN4 | BQ10: NN4 | BR10: NN4 | BS10: NN4 | BT10: NN4 | BU10: NN4 | BV10: NN4 | BW10: NN4 | BX10: NN4
A11: mandarin | B11: 7 | C11: NN5 | D11: NN5 | E11: NN5 | F11: NN5 | G11: NN5 | H11: NN5 | I11: NN5 | J11: NN5 | K11: NN5 | L11: NN5 | M11: NN5 | N11: NN5 | O11: NN5 | P11: NN5 | Q11: NN5 | R11: NN5 | S11: NN5 | T11: NN5 | U11: NN5 | V11: NN5 | W11: NN5 | X11: NN5 | Y11: NN5 | Z11: NN5 | AA11: NN5 | AB11: NN5 | AC11: NN5 | AD11: NN5 | AE11: NN5 | AF11: NN5 | AG11: NN5 | AH11: NN5 | AI11: NN5 | AJ11: NN5 | AK11: NN5 | AL11: NN5 | AM11: NN5 | AN11: NN5 | AO11: NN5 | AP11: NN5 | AQ11: NN5 | AR11: NN5 | AS11: NN5 | AT11: NN5 | AU11: NN5 | AV11: NN5 | AW11: NN5 | AX11: NN5 | AY11: NN5 | AZ11: NN5 | BA11: NN5 | BB11: NN5 | BC11: NN5 | BD11: NN5 | BE11: NN5 | BF11: NN5 | BG11: NN5 | BH11: NN5 | BI11: NN5 | BJ11: NN5 | BK11: NN5 | BL11: NN5 | BM11: NN5 | BN11: NN5 | BO11: NN5 | BP11: NN5 | BQ11: NN5 | BR11: NN5 | BS11: NN5 | BT11: NN5 | BU11: NN5 | BV11: NN5 | BW11: NN5 | BX11: NN5
A12: hindi | B12: 8 | C12: NN6 | D12: NN6 | E12: NN6 | F12: NN6 | G12: NN6 | H12: NN6 | I12: NN6 | J12: NN6 | K12: NN6 | L12: NN6 | M12: NN6 | N12: NN6 | O12: NN6 | P12: NN6 | Q12: NN6 | R12: NN6 | S12: NN6 | T12: NN6 | U12: NN6 | V12: NN6 | W12: NN6 | X12: NN6 | Y12: NN6 | Z12: NN6 | AA12: NN6 | AB12: NN6 | AC12: NN6 | AD12: NN6 | AE12: NN6 | AF12: NN6 | AG12: NN6 | AH12: NN6 | AI12: NN6 | AJ12: NN6 | AK12: NN6 | AL12: NN6 | AM12: NN6 | AN12: NN6 | AO12: NN6 | AP12: NN6 | AQ12: NN6 | AR12: NN6 | AS12: NN6 | AT12: NN6 | AU12: NN6 | AV12: NN6 | AW12: NN6 | AX12: NN6 | AY12: NN6 | AZ12: NN6 | BA12: NN6 | BB12: NN6 | BC12: NN6 | BD12: NN6 | BE12: NN6 | BF12: NN6 | BG12: NN6 | BH12: NN6 | BI12: NN6 | BJ12: NN6 | BK12: NN6 | BL12: NN6 | BM12: NN6 | BN12: NN6 | BO12: NN6 | BP12: NN6 | BQ12: NN6 | BR12: NN6 | BS12: NN6 | BT12: NN6 | BU12: NN6 | BV12: NN6 | BW12: NN6 | BX12: NN6
A13: arabe | B13: 9 | C13: NN7 | D13: NN7 | E13: NN7 | F13: NN7 | G13: NN7 | H13: NN7 | I13: NN7 | J13: NN7 | K13: NN7 | L13: NN7 | M13: NN7 | N13: NN7 | O13: NN7 | P13: NN7 | Q13: NN7 | R13: NN7 | S13: NN7 | T13: NN7 | U13: NN7 | V13: NN7 | W13: NN7 | X13: NN7 | Y13: NN7 | Z13: NN7 | AA13: NN7 | AB13: NN7 | AC13: NN7 | AD13: NN7 | AE13: NN7 | AF13: NN7 | AG13: NN7 | AH13: NN7 | AI13: NN7 | AJ13: NN7 | AK13: NN7 | AL13: NN7 | AM13: NN7 | AN13: NN7 | AO13: NN7 | AP13: NN7 | AQ13: NN7 | AR13: NN7 | AS13: NN7 | AT13: NN7 | AU13: NN7 | AV13: NN7 | AW13: NN7 | AX13: NN7 | AY13: NN7 | AZ13: NN7 | BA13: NN7 | BB13: NN7 | BC13: NN7 | BD13: NN7 | BE13: NN7 | BF13: NN7 | BG13: NN7 | BH13: NN7 | BI13: NN7 | BJ13: NN7 | BK13: NN7 | BL13: NN7 | BM13: NN7 | BN13: NN7 | BO13: NN7 | BP13: NN7 | BQ13: NN7 | BR13: NN7 | BS13: NN7 | BT13: NN7 | BU13: NN7 | BV13: NN7 | BW13: NN7 | BX13: NN7
A14: NN8 | B14: 10 | C14: NN8 | D14: NN8 | E14: NN8 | F14: NN8 | G14: NN8 | H14: NN8 | I14: NN8 | J14: NN8 | K14: NN8 | L14: NN8 | M14: NN8 | N14: NN8 | O14: NN8 | P14: NN8 | Q14: NN8 | R14: NN8 | S14: NN8 | T14: NN8 | U14: NN8 | V14: NN8 | W14: NN8 | X14: NN8 | Y14: NN8 | Z14: NN8 | AA14: NN8 | AB14: NN8 | AC14: NN8 | AD14: NN8 | AE14: NN8 | AF14: NN8 | AG14: NN8 | AH14: NN8 | AI14: NN8 | AJ14: NN8 | AK14: NN8 | AL14: NN8 | AM14: NN8 | AN14: NN8 | AO14: NN8 | AP14: NN8 | AQ14: NN8 | AR14: NN8 | AS14: NN8 | AT14: NN8 | AU14: NN8 | AV14: NN8 | AW14: NN8 | AX14: NN8 | AY14: NN8 | AZ14: NN8 | BA14: NN8 | BB14: NN8 | BC14: NN8 | BD14: NN8 | BE14: NN8 | BF14: NN8 | BG14: NN8 | BH14: NN8 | BI14: NN8 | BJ14: NN8 | BK14: NN8 | BL14: NN8 | BM14: NN8 | BN14: NN8 | BO14: NN8 | BP14: NN8 | BQ14: NN8 | BR14: NN8 | BS14: NN8 | BT14: NN8 | BU14: NN8 | BV14: NN8 | BW14: NN8 | BX14: NN8
A15: NN9 | B15: 11 | C15: NN9 | D15: NN9 | E15: NN9 | F15: NN9 | G15: NN9 | H15: NN9 | I15: NN9 | J15: NN9 | K15: NN9 | L15: NN9 | M15: NN9 | N15: NN9 | O15: NN9 | P15: NN9 | Q15: NN9 | R15: NN9 | S15: NN9 | T15: NN9 | U15: NN9 | V15: NN9 | W15: NN9 | X15: NN9 | Y15: NN9 | Z15: NN9 | AA15: NN9 | AB15: NN9 | AC15: NN9 | AD15: NN9 | AE15: NN9 | AF15: NN9 | AG15: NN9 | AH15: NN9 | AI15: NN9 | AJ15: NN9 | AK15: NN9 | AL15: NN9 | AM15: NN9 | AN15: NN9 | AO15: NN9 | AP15: NN9 | AQ15: NN9 | AR15: NN9 | AS15: NN9 | AT15: NN9 | AU15: NN9 | AV15: NN9 | AW15: NN9 | AX15: NN9 | AY15: NN9 | AZ15: NN9 | BA15: NN9 | BB15: NN9 | BC15: NN9 | BD15: NN9 | BE15: NN9 | BF15: NN9 | BG15: NN9 | BH15: NN9 | BI15: NN9 | BJ15: NN9 | BK15: NN9 | BL15: NN9 | BM15: NN9 | BN15: NN9 | BO15: NN9 | BP15: NN9 | BQ15: NN9 | BR15: NN9 | BS15: NN9 | BT15: NN9 | BU15: NN9 | BV15: NN9 | BW15: NN9 | BX15: NN9
